Workbook

Sheet גיליון1
A1: V2.01 | B1: הראל חברה לביטוח בע"מ | BB1: 'נספחים ב וג'!$ | CG1: לא קיים מידע נוסף בשורה זו. המשך בשורה הבאה.
A2: דו"ח חודשי , שיעורי ההשקעות ורכוש קבוע מסך כל ההתחייבויות לתקופה שנסתיימה ביום - | L2: 30.6.22 | AI2: =AJ2-1 -> 50 | AJ2: 51 | AK2: 52 | AL2: 53 | AM2: 54 | AN2: 55 | AO2: 56 | AP2: 57 | AQ2: 58 | AR2: 59 | AS2: 60 | AT2: 61 | AU2: 62 | AV2: 63 | AW2: 64 | AX2: 65 | AY2: 66 | AZ2: 67 | BA2: =BB2-1 -> 68 | BB2: 69 | BC2: =BB2+1 -> 70 | BD2: =BC2+1 -> 71 | BE2: 72 | BF2: 73 | BG2: 74 | BH2: 75 | BI2: 76 | BJ2: 77 | BK2: 78 | BL2: 79 | BM2: 80 | BN2: 81 | BO2: 82 | BP2: 83 | BQ2: 84 | BR2: 85 | BS2: 86 | BT2: 87 | BU2: 88 | BV2: 89 | BW2: 90 | BX2: 91 | BY2: 92 | BZ2: 93 | CA2: 94 | CB2: 95 | CC2: 96 | CD2: 97 | CE2: 98 | CF2: 99 | CG2: לא קיים מידע נוסף בשורה זו. המשך בשורה הבאה.
A3: הסכומים באלפי ש"ח | O3: 1 | P3: =O3+1 -> 2 | Q3: =P3+1 -> 3 | R3: 4 | S3: 5 | T3: 6 | U3: 7 | V3: 8 | W3: 9 | X3: 10 | Y3: 11 | Z3: 12 | AA3: 13 | AB3: 14 | AC3: 15 | AD3: 16 | AE3: 17 | AF3: 18 | AG3: 19 | AH3: 20 | AI3: 21 | AJ3: 22 | AK3: 23 | AL3: 24 | AM3: 25 | AN3: 26 | AO3: 27 | AP3: 28 | AQ3: 29 | AR3: 30 | AS3: 31 | AT3: 32 | AU3: 33 | AV3: 34 | AW3: 35 | AX3: 36 | AY3: 37 | AZ3: 38 | BA3: 39 | BB3: 40 | BC3: 41 | BD3: 42 | BE3: 43 | BF3: 44 | BG3: 45 | BH3: 46 | BI3: 47 | BJ3: 48 | BK3: 49 | BL3: 50 | BM3: 51 | BN3: 52 | BO3: 53 | BP3: 54 | BQ3: 55 | BR3: 56 | BS3: 57 | BT3: 58 | BU3: 59 | BV3: 60 | BW3: 61 | BX3: 62 | BY3: 63 | BZ3: 64 | CA3: 65 | CB3: 66 | CC3: 67 | CD3: 68 | CE3: 69 | CF3: 70 | CG3: לא קיים מידע נוסף בשורה זו. המשך בשורה הבאה.
A6: גיליון זה הוא הגיליון היחיד בקובץ זה. גבלות הגיליון הם טור CG ושורה 496. גיליון זה מכיל טבלה המתחילה בתא A7 ומסתיימת בתא CG496. שורות 7 עד 10 מכילות את כותרות הטבלה. קיימים תאים ריקים בטבלה.
J7: סה"כ משתתף ברווחים | K7: ביטוח חיים
K8: 10 | L8: 11 | M8: 12 | N8: 13
I9: חזרה | K9: קרן ח' | L9: קרן ט' | M9: קרן י' | N9: קרן י' פוליסות שהונפקו לאחר 1.1.04 | O9: הראל-מסלול כללי | P9: הראל-מסלול אג"ח ללא מניות | Q9: הראל-מסלול אג"ח עד 20% במניות | R9: הראל-מסלול אג"ח עד 10% במניות | S9: הראל-מסלול מניות | T9: הראל-מסלול שקלי טווח קצר | U9: הראל-מסלול חו"ל | V9: הראל - מסלול אג"ח מדינת ישראל | W9: הראל - מסלול אג"ח קונצרני | X9: הראל-מסלול משתתף ברווחים שקלי טווח קצר | Y9: הראל-מסלול משתתף ברווחים כללי ללא מניות | Z9: הראל-מסלול משתתף ברווחים לפחות 75% מניות | AA9: הראל- אג"ח חו"ל | AB9: הראל-מסלול פאסיבי - כללי | AC9: הראל-מסלול לבני 50 ומטה | AD9: הראל-מסלול לבני 50 עד 60 | AE9: הראל-מסלול לבני 60 ומעלה | AF9: הראל-מסלול בסיסי למקבלי קצבה | AG9: הראל-מסלול אג"ח עד 20% במניות למקבלי קצבה | AH9: הראל חברה לביטוח בע"מ מדרגות עד 50 | AI9: הראל מסלול לגילאי 50 עד 60 | AJ9: הראל מסלול לגילאי 60 ומעלה | AK9: הראל מסלול בסיסי למקבלי קצבה | AL9: הראל מסלול אג"ח עד 20% במניות למקבלי קצבה | AM9: הראל מסלול הוני ללא אג"ח | AN9: הראל מחקה מדד ממשלתי שקלי ריבית קבועה | AO9: הראל מחקה מדד S&P 500 | AP9: הראל מחקה מדד ממשלתי צמוד 5-10 | AQ9: הראל מחקה מדד תל בונד 60 | AR9: הראל מחקה מדד ת"א 35 | CG9: אחר
A10: שורה | K10: 0010 | L10: 0011 | M10: 0012 | N10: 0013 | O10: 88 | P10: 89 | Q10: 90 | R10: 91 | S10: 92 | T10: 93 | U10: 163 | V10: 177 | W10: 178 | X10: 195 | Y10: 196 | Z10: 197 | AA10: 8592 | AB10: 9561 | AC10: 9562 | AD10: 9563 | AE10: 9564 | AF10: 9565 | AG10: 9566 | AH10: 11400 | AI10: 11401 | AJ10: 11402 | AK10: 11403 | AL10: 11404 | AM10: 12981 | AN10: 13433 | AO10: 13434 | AP10: 13435 | AQ10: 13436 | AR10: 13437
A11: 10 | B11: 1. | C11: השקעות | J11: =SUM(K11:CG11) -> 77142344.45 | K11: =SUM(K12,K25,K393,K418,K455,K487,K495) -> 3786.912131 | L11: 882956.7396 | M11: 23371846.54 | N11: 796400.5028 | O11: 23086237.41 | P11: 1254372.908 | Q11: 6392251.02 | R11: 1690591.64 | S11: 2473847.461 | T11: 823347.97 | U11: 347270.25 | V11: 268359.25 | W11: 124099.72 | X11: 52999.22565 | Y11: 72134.54455 | Z11: 99171.53137 | AA11: 21160.6 | AB11: 225654.38 | AC11: 2374628.92 | AD11: 937174.8712 | AE11: 1434761.4 | AF11: 1998510.111 | AG11: 903307.5076 | AH11: 45544.5984 | AI11: 127423.214 | AJ11: 245806.8163 | AK11: 1076084.638 | AL11: 392587.4051 | AM11: 429794.94 | AN11: 18451.05 | AO11: 238256.65 | AP11: 54687.23 | AQ11: 61467.42 | AR11: 70227.54 | AS11: 0 | AT11: 0 | AU11: 0 | AV11: 0 | AW11: 0 | AX11: 0 | AY11: 0 | AZ11: 0 | BA11: 0 | BB11: 0 | BC11: 0 | BD11: 0 | BE11: 0 | BF11: 0 | BG11: 0 | BH11: 0 | BI11: 0 | BJ11: 0 | BK11: 0 | BL11: 0 | BM11: 0 | BN11: 0 | BO11: 0 | BP11: 0 | BQ11: 0 | BR11: 0 | BS11: 0 | BT11: 0 | BU11: 0 | BV11: 0 | BW11: 0 | BX11: 0 | BY11: 0 | BZ11: 0 | CA11: 0 | CB11: 0 | CC11: 0 | CD11: 0 | CE11: 0 | CF11: 0 | CG11: 4747141.53
A12: =A11+1 -> 11 | C12: א. | D12: מזומנים ושווי מזומנים | J12: =SUM(K12:CG12) -> 3604459.46 | K12: =SUM(K13,K21) -> 77.73868924 | L12: 30580.3695 | M12: 990890.9962 | N12: 33764.81562 | O12: 1011711.21 | P12: 48315.73325 | Q12: 215582.76 | R12: 64306.31 | S12: 169289.9106 | T12: 96388.24179 | U12: 24475.26 | V12: 19229.4 | W12: 7051.73 | X12: 6204.548214 | Y12: 2778.466747 | Z12: 6786.489443 | AA12: 1474.54 | AB12: 9550.55 | AC12: 124678.007 | AD12: 46068.27549 | AE12: 67594.53047 | AF12: 94549.68394 | AG12: 41564.71602 | AH12: 2391.282996 | AI12: 6263.684514 | AJ12: 11580.45953 | AK12: 50909.65606 | AL12: 18064.48398 | AM12: 102645.66 | AN12: 272.91 | AO12: 2820.63 | AP12: 811.62 | AQ12: 928.59 | AR12: 787.32 | AS12: 0 | AT12: 0 | AU12: 0 | AV12: 0 | AW12: 0 | AX12: 0 | AY12: 0 | AZ12: 0 | BA12: 0 | BB12: 0 | BC12: 0 | BD12: 0 | BE12: 0 | BF12: 0 | BG12: 0 | BH12: 0 | BI12: 0 | BJ12: 0 | BK12: 0 | BL12: 0 | BM12: 0 | BN12: 0 | BO12: 0 | BP12: 0 | BQ12: 0 | BR12: 0 | BS12: 0 | BT12: 0 | BU12: 0 | BV12: 0 | BW12: 0 | BX12: 0 | BY12: 0 | BZ12: 0 | CA12: 0 | CB12: 0 | CC12: 0 | CD12: 0 | CE12: 0 | CF12: 0 | CG12: 294068.88
A13: 12 | D13: (1 | E13: בישראל | J13: 3576550.637 | K13: =SUM(K14:K20) -> 77.03271264 | L13: 30302.65675 | M13: 981892.3128 | N13: 33458.18362 | O13: 1002475.926 | P13: 48315.73325 | Q13: 214681.7968 | R13: 64227.63433 | S13: 166890.1671 | T13: 96388.24179 | U13: 24475.26 | V13: 19229.4 | W13: 7048.161271 | X13: 6204.548214 | Y13: 2778.466747 | Z13: 6786.489443 | AA13: 1291.682569 | AB13: 9550.55 | AC13: 123477.9492 | AD13: 45639.17172 | AE13: 67217.10598 | AF13: 93335.05723 | AG13: 41347.46705 | AH13: 2391.282996 | AI13: 6263.684514 | AJ13: 11580.45953 | AK13: 50909.65606 | AL13: 18064.48398 | AM13: 102418.4929 | AN13: 272.91 | AO13: 2820.63 | AP13: 811.62 | AQ13: 928.59 | AR13: 787.32 | AS13: 0 | AT13: 0 | AU13: 0 | AV13: 0 | AW13: 0 | AX13: 0 | AY13: 0 | AZ13: 0 | BA13: 0 | BB13: 0 | BC13: 0 | BD13: 0 | BE13: 0 | BF13: 0 | BG13: 0 | BH13: 0 | BI13: 0 | BJ13: 0 | BK13: 0 | BL13: 0 | BM13: 0 | BN13: 0 | BO13: 0 | BP13: 0 | BQ13: 0 | BR13: 0 | BS13: 0 | BT13: 0 | BU13: 0 | BV13: 0 | BW13: 0 | BX13: 0 | BY13: 0 | BZ13: 0 | CA13: 0 | CB13: 0 | CC13: 0 | CD13: 0 | CE13: 0 | CF13: 0 | CG13: 292210.5121
A14: 13 | E14: א) | F14: יתרות מזומנים ועו"ש בשקלים חדשים | J14: 2452569.74 | K14: 49.12085189 | L14: 19322.8599 | M14: 626115.649 | N14: 21335.02023 | O14: 676240.2 | P14: 40144.30326 | Q14: 157517.74 | R14: 52352.83 | S14: 104859.5626 | T14: 94022.0354 | U14: 11795.68 | V14: 18225.67 | W14: 5179.77 | X14: 6052.234598 | Y14: 2308.556741 | Z14: 4203.607365 | AA14: 788.19 | AB14: 6791.95 | AC14: 84832.01007 | AD14: 32341.73762 | AE14: 52741.77986 | AF14: 67278.15793 | AG14: 32427.5006 | AH14: 1627.049935 | AI14: 4397.352384 | AJ14: 9035.850139 | AK14: 36225.48207 | AL14: 14093.3494 | AM14: 95801.89 | AN14: 272.91 | AO14: 2820.63 | AP14: 811.62 | AQ14: 928.59 | AR14: 787.32 | CG14: 168841.53
A15: 14 | E15: ב) | F15: יתרות מזומנים ועו"ש נקובים במט"ח | J15: 1002242.497 | K15: 24.42440315 | L15: 9607.922135 | M15: 311324.019 | N15: 10608.43033 | O15: 309527.5261 | P15: 5820.512911 | Q15: 50000.14677 | R15: 9861.64433 | S15: 59853.48096 | T15: 2.602477521 | U15: 12484.2 | V15: 0 | W15: 1726.291271 | X15: 0.1675224794 | Y15: 334.7170887 | Z15: 2495.605608 | AA15: 490.7025694 | AB15: 2758.6 | AC15: 36511.86002 | AD15: 12171.98595 | AE15: 12994.39316 | AF15: 23490.05809 | AG15: 7700.674268 | AH15: 723.3021293 | AI15: 1713.310291 | AJ15: 2290.892356 | AK15: 13302.0752 | AL15: 3441.216763 | AM15: 6488.372895 | CG15: 94493.36208
A16: 15 | E16: ג) | F16: פח"ק/פר"י | J16: 121738.4 | K16: 3.487457602 | L16: 1371.874714 | M16: 44452.64476 | N16: 1514.733063 | O16: 16708.2 | P16: 2350.917083 | Q16: 7163.91 | R16: 2013.16 | S16: 2177.12353 | T16: 2363.603907 | U16: 195.38 | V16: 1003.73 | W16: 142.1 | X16: 152.146093 | Y16: 135.1929175 | Z16: 87.27647029 | AA16: 12.79 | AC16: 2134.079068 | AD16: 1125.448161 | AE16: 1480.93296 | AF16: 2566.841214 | AG16: 1219.292174 | AH16: 40.93093169 | AI16: 153.0218387 | AJ16: 253.7170403 | AK16: 1382.098786 | AL16: 529.917826 | AM16: 128.23 | CG16: 28875.62
A17: 16 | E17: ד) | F17: פק"מ לתקופה של עד שלושה חודשים | J17: 0 | K17: 0 | L17: 0 | M17: 0 | N17: 0 | P17: 0 | S17: 0 | T17: 0 | X17: 0 | Y17: 0 | Z17: 0 | AC17: 0 | AD17: 0 | AE17: 0 | AF17: 0 | AG17: 0 | AH17: 0 | AI17: 0 | AJ17: 0 | AK17: 0 | AL17: 0 | CG17: 0
A18: 17 | E18: ה) | F18: פיקדון צמוד מדד עד שלושה חודשים | J18: 0 | K18: 0 | L18: 0 | M18: 0 | N18: 0 | P18: 0 | S18: 0 | T18: 0 | X18: 0 | Y18: 0 | Z18: 0 | AC18: 0 | AD18: 0 | AE18: 0 | AF18: 0 | AG18: 0 | AH18: 0 | AI18: 0 | AJ18: 0 | AK18: 0 | AL18: 0 | CG18: 0
A19: 18 | E19: ו) | F19: פיקדון צמוד מט"ח עד שלושה חודשים (פצ"מ) | J19: 0 | K19: 0 | L19: 0 | M19: 0 | N19: 0 | P19: 0 | S19: 0 | T19: 0 | X19: 0 | Y19: 0 | Z19: 0 | AC19: 0 | AD19: 0 | AE19: 0 | AF19: 0 | AG19: 0 | AH19: 0 | AI19: 0 | AJ19: 0 | AK19: 0 | AL19: 0 | CG19: 0
A20: 19 | E20: ז) | F20: פיקדונות במט"ח עד שלושה חודשים | J20: 0 | K20: 0 | L20: 0 | M20: 0 | N20: 0 | P20: 0 | S20: 0 | T20: 0 | X20: 0 | Y20: 0 | Z20: 0 | AC20: 0 | AD20: 0 | AE20: 0 | AF20: 0 | AG20: 0 | AH20: 0 | AI20: 0 | AJ20: 0 | AK20: 0 | AL20: 0 | CG20: 0
A21: 20 | D21: (2 | E21: בחו"ל | J21: 27908.8233 | K21: =SUM(K22:K23) -> 0.7059765934 | L21: =SUM(L22:L23) -> 277.7127489 | M21: 8998.683368 | N21: 306.6319968 | O21: 9235.28391 | P21: 0 | Q21: 900.9632341 | R21: 78.6756701 | S21: 2399.743435 | T21: 0 | U21: 0 | V21: 0 | W21: 3.568728559 | X21: 0 | Y21: 0 | Z21: 0 | AA21: 182.8574306 | AB21: 0 | AC21: 1200.057848 | AD21: 429.1037639 | AE21: 377.4244831 | AF21: 1214.62671 | AG21: 217.2489688 | AH21: 0 | AI21: 0 | AJ21: 0 | AK21: 0 | AL21: 0 | AM21: 227.1671052 | AN21: 0 | AO21: 0 | AP21: 0 | AQ21: 0 | AR21: 0 | AS21: 0 | AT21: 0 | AU21: 0 | AV21: 0 | AW21: 0 | AX21: 0 | AY21: 0 | AZ21: 0 | BA21: 0 | BB21: 0 | BC21: 0 | BD21: 0 | BE21: 0 | BF21: 0 | BG21: 0 | BH21: 0 | BI21: 0 | BJ21: 0 | BK21: 0 | BL21: 0 | BM21: 0 | BN21: 0 | BO21: 0 | BP21: 0 | BQ21: 0 | BR21: 0 | BS21: 0 | BT21: 0 | BU21: 0 | BV21: 0 | BW21: 0 | BX21: 0 | BY21: 0 | BZ21: 0 | CA21: 0 | CB21: 0 | CC21: 0 | CD21: 0 | CE21: 0 | CF21: 0 | CG21: 1858.367921
A22: 21 | E22: א) | F22: יתרות מזומנים ועו"ש נקובים במט"ח | J22: 27908.8233 | K22: 0.7059765934 | L22: 277.7127489 | M22: 8998.683368 | N22: 306.6319968 | O22: 9235.28391 | Q22: 900.9632341 | R22: 78.6756701 | S22: 2399.743435 | W22: 3.568728559 | AA22: 182.8574306 | AC22: 1200.057848 | AD22: 429.1037639 | AE22: 377.4244831 | AF22: 1214.62671 | AG22: 217.2489688 | AM22: 227.1671052 | CG22: 1858.367921
A23: 22 | E23: ב) | F23: פיקדונות במט"ח עד שלושה חודשים | J23: 0 | K23: 0 | L23: 0 | M23: 0 | N23: 0 | P23: 0 | S23: 0 | T23: 0 | X23: 0 | Y23: 0 | Z23: 0 | AC23: 0 | AD23: 0 | AE23: 0 | AF23: 0 | AG23: 0 | AH23: 0 | AI23: 0 | AJ23: 0 | AK23: 0 | AL23: 0 | CG23: 0
A24: 23 | AC24: 0 | AD24: 0 | AE24: 0 | AF24: 0 | AG24: 0 | AH24: 0 | AI24: 0 | AJ24: 0 | AK24: 0 | AL24: 0 | CG24: 0
A25: 24 | C25: ב. | D25: ניירות ערך (למעט בחברות מוחזקות) | J25: 55966651.11 | K25: =SUM(K26,K97,K156,K190,K198,K210,K218,K235,K176,K45,K281) -> 3261.162629 | L25: =SUM(L26,L97,L156,L190,L198,L210,L218,L235,L176,L45,L281) -> 682212.1102 | M25: 16814092.91 | N25: 572943.6931 | O25: 15972424.85 | P25: 809455.5286 | Q25: 4477520.01 | R25: 1146745.43 | S25: 2242259.356 | T25: 727689.7225 | U25: 300715.69 | V25: 249996.59 | W25: 83406.97 | X25: 46841.66745 | Y25: 46548.92139 | Z25: 89887.63358 | AA25: 17546.17 | AB25: 214122.85 | AC25: 1846430.208 | AD25: 729263.0574 | AE25: 1051991.837 | AF25: 1507162.926 | AG25: 659287.0131 | AH25: 35413.92156 | AI25: 99154.43265 | AJ25: 180229.8029 | AK25: 811521.9743 | AL25: 286533.4069 | AM25: 318854.48 | AN25: 18025.94 | AO25: 233808.86 | AP25: 53721.36 | AQ25: 60533.61 | AR25: 69486.39 | AS25: 0 | AT25: 0 | AU25: 0 | AV25: 0 | AW25: 0 | AX25: 0 | AY25: 0 | AZ25: 0 | BA25: 0 | BB25: 0 | BC25: 0 | BD25: 0 | BE25: 0 | BF25: 0 | BG25: 0 | BH25: 0 | BI25: 0 | BJ25: 0 | BK25: 0 | BL25: 0 | BM25: 0 | BN25: 0 | BO25: 0 | BP25: 0 | BQ25: 0 | BR25: 0 | BS25: 0 | BT25: 0 | BU25: 0 | BV25: 0 | BW25: 0 | BX25: 0 | BY25: 0 | BZ25: 0 | CA25: 0 | CB25: 0 | CC25: 0 | CD25: 0 | CE25: 0 | CF25: 0 | CG25: 3507560.63
A26: 25 | D26: (1 | E26: אגרות חוב ממשלתיות: | J26: 13166164.22 | K26: =SUM(K27,K37) -> 2213.209266 | L26: =SUM(L27,L37) -> 269974.6341 | M26: 3456425.554 | N26: 117778.4156 | O26: 3028732.62 | P26: 371738.5615 | Q26: 1436977.63 | R26: 422797.31 | S26: 277629.7461 | T26: 724901.8302 | U26: 12693.03 | V26: 249478.49 | W26: 112.76 | X26: 46662.20975 | Y26: 21377.36845 | Z26: 11129.6139 | AA26: 239.44 | AB26: 0 | AC26: 368800.93 | AD26: 198113.7718 | AE26: 364476.7379 | AF26: 348493.5486 | AG26: 242432.2224 | AH26: 7073.48003 | AI26: 26936.58817 | AJ26: 62443.04214 | AK26: 187644.0614 | AL26: 105363.7176 | AM26: 0 | AN26: 0 | AO26: 0 | AP26: 0 | AQ26: 0 | AR26: 0 | AS26: 0 | AT26: 0 | AU26: 0 | AV26: 0 | AW26: 0 | AX26: 0 | AY26: 0 | AZ26: 0 | BA26: 0 | BB26: 0 | BC26: 0 | BD26: 0 | BE26: 0 | BF26: 0 | BG26: 0 | BH26: 0 | BI26: 0 | BJ26: 0 | BK26: 0 | BL26: 0 | BM26: 0 | BN26: 0 | BO26: 0 | BP26: 0 | BQ26: 0 | BR26: 0 | BS26: 0 | BT26: 0 | BU26: 0 | BV26: 0 | BW26: 0 | BX26: 0 | BY26: 0 | BZ26: 0 | CA26: 0 | CB26: 0 | CC26: 0 | CD26: 0 | CE26: 0 | CF26: 0 | CG26: 803523.7
A27: 26 | E27: א) | F27: בישראל | J27: 13166164.22 | K27: =SUM(K28,K35:K36) -> 2213.209266 | L27: =SUM(L28,L35:L36) -> 269974.6341 | M27: 3456425.554 | N27: 117778.4156 | O27: 3028732.62 | P27: 371738.5615 | Q27: 1436977.63 | R27: 422797.31 | S27: 277629.7461 | T27: 724901.8302 | U27: 12693.03 | V27: 249478.49 | W27: 112.76 | X27: 46662.20975 | Y27: 21377.36845 | Z27: 11129.6139 | AA27: 239.44 | AB27: 0 | AC27: 368800.93 | AD27: 198113.7718 | AE27: 364476.7379 | AF27: 348493.5486 | AG27: 242432.2224 | AH27: 7073.48003 | AI27: 26936.58817 | AJ27: 62443.04214 | AK27: 187644.0614 | AL27: 105363.7176 | AM27: 0 | AN27: 0 | AO27: 0 | AP27: 0 | AQ27: 0 | AR27: 0 | AS27: 0 | AT27: 0 | AU27: 0 | AV27: 0 | AW27: 0 | AX27: 0 | AY27: 0 | AZ27: 0 | BA27: 0 | BB27: 0 | BC27: 0 | BD27: 0 | BE27: 0 | BF27: 0 | BG27: 0 | BH27: 0 | BI27: 0 | BJ27: 0 | BK27: 0 | BL27: 0 | BM27: 0 | BN27: 0 | BO27: 0 | BP27: 0 | BQ27: 0 | BR27: 0 | BS27: 0 | BT27: 0 | BU27: 0 | BV27: 0 | BW27: 0 | BX27: 0 | BY27: 0 | BZ27: 0 | CA27: 0 | CB27: 0 | CC27: 0 | CD27: 0 | CE27: 0 | CF27: 0 | CG27: 803523.7
A28: 27 | F28: (1) | G28: סחיר | J28: 13000917.98 | K28: =SUM(K29:K33) -> 271.168063 | L28: =SUM(L29:L33) -> 106670.432 | M28: 3456425.554 | N28: 117778.4156 | O28: 3028732.62 | P28: 371738.5615 | Q28: 1436977.63 | R28: 422797.31 | S28: 277629.7461 | T28: 724901.8302 | U28: 12693.03 | V28: 249478.49 | W28: 112.76 | X28: 46662.20975 | Y28: 21377.36845 | Z28: 11129.6139 | AA28: 239.44 | AB28: 0 | AC28: 368800.93 | AD28: 198113.7718 | AE28: 364476.7379 | AF28: 348493.5486 | AG28: 242432.2224 | AH28: 7073.48003 | AI28: 26936.58817 | AJ28: 62443.04214 | AK28: 187644.0614 | AL28: 105363.7176 | AM28: 0 | AN28: 0 | AO28: 0 | AP28: 0 | AQ28: 0 | AR28: 0 | AS28: 0 | AT28: 0 | AU28: 0 | AV28: 0 | AW28: 0 | AX28: 0 | AY28: 0 | AZ28: 0 | BA28: 0 | BB28: 0 | BC28: 0 | BD28: 0 | BE28: 0 | BF28: 0 | BG28: 0 | BH28: 0 | BI28: 0 | BJ28: 0 | BK28: 0 | BL28: 0 | BM28: 0 | BN28: 0 | BO28: 0 | BP28: 0 | BQ28: 0 | BR28: 0 | BS28: 0 | BT28: 0 | BU28: 0 | BV28: 0 | BW28: 0 | BX28: 0 | BY28: 0 | BZ28: 0 | CA28: 0 | CB28: 0 | CC28: 0 | CD28: 0 | CE28: 0 | CF28: 0 | CG28: 803523.7
A29: 28 | G29: (א) | H29: צמוד מדד | J29: 6442263.89 | K29: 92.26083916 | L29: 36293.0039 | M29: 1175996.608 | N29: 40072.32761 | O29: 2484599.59 | P29: 55774.20306 | Q29: 644788.17 | R29: 223525.3 | S29: 0 | T29: 0 | V29: 91055.23 | W29: 74.85 | X29: 0 | Y29: 3207.376937 | Z29: 0 | AC29: 315195.7202 | AD29: 120225.6233 | AE29: 230320.4925 | AF29: 171357.279 | AG29: 121085.9017 | AH29: 6045.349811 | AI29: 16346.50672 | AJ29: 39459.06754 | AK29: 92266.20096 | AL29: 52625.2683 | CG29: 521857.56
A30: 29 | G30: (ג) | H30: לא צמוד בריבית קבועה | J30: 4417417.91 | K30: 137.6341456 | L30: 54141.67732 | M30: 1754344.42 | N30: 59779.64891 | O30: 405612.53 | P30: 254574.3788 | Q30: 686373.7 | R30: 170373.48 | S30: 27534.82468 | T30: 10800.92998 | U30: 1571.3 | V30: 120942.7 | W30: 23.19 | X30: 695.2600191 | Y30: 14639.67115 | Z30: 1103.815321 | AA30: 190.67 | AC30: 36316.95284 | AD30: 63337.00798 | AE30: 122243.3258 | AF30: 146559.0776 | AG30: 104932.4988 | AH30: 696.5471608 | AI30: 8611.632015 | AJ30: 20943.02421 | AK30: 78913.77236 | AL30: 45604.82123 | CG30: 226419.42
A31: 30 | G31: (ד) | H31: לא צמוד בריבית משתנה | J31: 525127.1 | K31: 18.93454061 | L31: 7448.353628 | M31: 241347.8538 | N31: 8223.978031 | O31: 38981.48 | P31: 36574.52837 | Q31: 60423.39 | R31: 14344.68 | S31: 3446.198871 | T31: 0 | U31: 200.74 | V31: 18175.94 | W31: 3.28 | X31: 0 | Y31: 2103.271626 | Z31: 138.1511289 | AA31: 27.07 | AC31: 4088.444976 | AD31: 8474.255717 | AE31: 5183.628197 | AF31: 18173.47292 | AG31: 9744.285887 | AH31: 78.41502431 | AI31: 1152.204283 | AJ31: 888.0718034 | AK31: 9785.387081 | AL31: 4234.974113 | CG31: 31866.11
A32: 31 | G32: (ה) | H32: צמוד מט"ח | J32: 0 | K32: 0 | L32: 0 | M32: 0 | N32: 0 | P32: 0 | S32: 0 | T32: 0 | X32: 0 | Y32: 0 | Z32: 0 | AC32: 0 | AD32: 0 | AE32: 0 | AF32: 0 | AG32: 0 | AH32: 0 | AI32: 0 | AJ32: 0 | AK32: 0 | AL32: 0 | CG32: 0
A33: 32 | G33: (ו) | H33: מק"מ | J33: 1616109.08 | K33: 22.33853759 | L33: 8787.397113 | M33: 284736.6733 | N33: 9702.461029 | O33: 99539.02 | P33: 24815.45126 | Q33: 45392.37 | R33: 14553.85 | S33: 246648.7226 | T33: 714100.9003 | U33: 10920.99 | V33: 19304.62 | W33: 11.44 | X33: 45966.94973 | Y33: 1427.048737 | Z33: 9887.647445 | AA33: 21.7 | AC33: 13199.81197 | AD33: 6076.884844 | AE33: 6729.291411 | AF33: 12403.719 | AG33: 6669.536068 | AH33: 253.1680339 | AI33: 826.2451565 | AJ33: 1152.878589 | AK33: 6678.700997 | AL33: 2898.653932 | CG33: 23380.61
A34: 33 | F34: (2) | G34: לא סחיר | J34: 165246.2434 | K34: =SUM(K35:K36) -> 1942.041203 | L34: =SUM(L35:L36) -> 163304.2022 | M34: 0 | N34: 0 | O34: 0 | P34: 0 | Q34: 0 | R34: 0 | S34: 0 | T34: 0 | U34: 0 | V34: 0 | W34: 0 | X34: 0 | Y34: 0 | Z34: 0 | AA34: 0 | AB34: 0 | AC34: 0 | AD34: 0 | AE34: 0 | AF34: 0 | AG34: 0 | AH34: 0 | AI34: 0 | AJ34: 0 | AK34: 0 | AL34: 0 | AM34: 0 | AN34: 0 | AO34: 0 | AP34: 0 | AQ34: 0 | AR34: 0 | AS34: 0 | AT34: 0 | AU34: 0 | AV34: 0 | AW34: 0 | AX34: 0 | AY34: 0 | AZ34: 0 | BA34: 0 | BB34: 0 | BC34: 0 | BD34: 0 | BE34: 0 | BF34: 0 | BG34: 0 | BH34: 0 | BI34: 0 | BJ34: 0 | BK34: 0 | BL34: 0 | BM34: 0 | BN34: 0 | BO34: 0 | BP34: 0 | BQ34: 0 | BR34: 0 | BS34: 0 | BT34: 0 | BU34: 0 | BV34: 0 | BW34: 0 | BX34: 0 | BY34: 0 | BZ34: 0 | CA34: 0 | CB34: 0 | CC34: 0 | CD34: 0 | CE34: 0 | CF34: 0 | CG34: 0
A35: 34 | G35: (א) | H35: אג"ח מיועדות - הסכמי "חץ" כולל אג"ח של חברת החשמל | J35: 165246.2434 | K35: 1942.041203 | L35: 163304.2022 | M35: 0 | N35: 0 | P35: 0 | S35: 0 | T35: 0 | X35: 0 | Y35: 0 | Z35: 0 | AC35: 0 | AD35: 0 | AE35: 0 | AF35: 0 | AG35: 0 | AH35: 0 | AI35: 0 | AJ35: 0 | AK35: 0 | AL35: 0 | CG35: 0
A36: 35 | G36: (ב) | H36: אג"ח לא סחירות אחרות | J36: 0 | K36: 0 | L36: 0 | M36: 0 | N36: 0 | P36: 0 | S36: 0 | T36: 0 | X36: 0 | Y36: 0 | Z36: 0 | AC36: 0 | AD36: 0 | AE36: 0 | AF36: 0 | AG36: 0 | AH36: 0 | AI36: 0 | AJ36: 0 | AK36: 0 | AL36: 0 | CG36: 0
A37: 36 | E37: ב) | F37: בחו"ל | J37: 0 | K37: =SUM(K41,K38) -> 0 | L37: =SUM(L41,L38) -> 0 | M37: 0 | N37: 0 | O37: 0 | P37: 0 | Q37: 0 | R37: 0 | S37: 0 | T37: 0 | U37: 0 | V37: 0 | W37: 0 | X37: 0 | Y37: 0 | Z37: 0 | AA37: 0 | AB37: 0 | AC37: 0 | AD37: 0 | AE37: 0 | AF37: 0 | AG37: 0 | AH37: 0 | AI37: 0 | AJ37: 0 | AK37: 0 | AL37: 0 | AM37: 0 | AN37: 0 | AO37: 0 | AP37: 0 | AQ37: 0 | AR37: 0 | AS37: 0 | AT37: 0 | AU37: 0 | AV37: 0 | AW37: 0 | AX37: 0 | AY37: 0 | AZ37: 0 | BA37: 0 | BB37: 0 | BC37: 0 | BD37: 0 | BE37: 0 | BF37: 0 | BG37: 0 | BH37: 0 | BI37: 0 | BJ37: 0 | BK37: 0 | BL37: 0 | BM37: 0 | BN37: 0 | BO37: 0 | BP37: 0 | BQ37: 0 | BR37: 0 | BS37: 0 | BT37: 0 | BU37: 0 | BV37: 0 | BW37: 0 | BX37: 0 | BY37: 0 | BZ37: 0 | CA37: 0 | CB37: 0 | CC37: 0 | CD37: 0 | CE37: 0 | CF37: 0 | CG37: 0
A38: 37 | F38: (1) | G38: סחיר | J38: 0 | K38: =SUM(K39:K40) -> 0 | L38: =SUM(L39:L40) -> 0 | M38: 0 | N38: 0 | O38: 0 | P38: 0 | Q38: 0 | R38: 0 | S38: 0 | T38: 0 | U38: 0 | V38: 0 | W38: 0 | X38: 0 | Y38: 0 | Z38: 0 | AA38: 0 | AB38: 0 | AC38: 0 | AD38: 0 | AE38: 0 | AF38: 0 | AG38: 0 | AH38: 0 | AI38: 0 | AJ38: 0 | AK38: 0 | AL38: 0 | AM38: 0 | AN38: 0 | AO38: 0 | AP38: 0 | AQ38: 0 | AR38: 0 | AS38: 0 | AT38: 0 | AU38: 0 | AV38: 0 | AW38: 0 | AX38: 0 | AY38: 0 | AZ38: 0 | BA38: 0 | BB38: 0 | BC38: 0 | BD38: 0 | BE38: 0 | BF38: 0 | BG38: 0 | BH38: 0 | BI38: 0 | BJ38: 0 | BK38: 0 | BL38: 0 | BM38: 0 | BN38: 0 | BO38: 0 | BP38: 0 | BQ38: 0 | BR38: 0 | BS38: 0 | BT38: 0 | BU38: 0 | BV38: 0 | BW38: 0 | BX38: 0 | BY38: 0 | BZ38: 0 | CA38: 0 | CB38: 0 | CC38: 0 | CD38: 0 | CE38: 0 | CF38: 0 | CG38: 0
A39: 38 | G39: (א) | H39: ממשלת ישראל שהונפקו בחו"ל | J39: 0 | K39: 0 | L39: 0 | M39: 0 | N39: 0 | P39: 0 | S39: 0 | T39: 0 | X39: 0 | Y39: 0 | Z39: 0 | AC39: 0 | AD39: 0 | AE39: 0 | AF39: 0 | AG39: 0 | AH39: 0 | AI39: 0 | AJ39: 0 | AK39: 0 | AL39: 0 | CG39: 0
A40: 39 | G40: (ב) | H40: שהנפיקה ממשלה זרה | J40: 0 | K40: 0 | L40: 0 | M40: 0 | N40: 0 | P40: 0 | S40: 0 | T40: 0 | X40: 0 | Y40: 0 | Z40: 0 | AC40: 0 | AD40: 0 | AE40: 0 | AF40: 0 | AG40: 0 | AH40: 0 | AI40: 0 | AJ40: 0 | AK40: 0 | AL40: 0 | CG40: 0
A41: 40 | F41: (2) | G41: לא סחיר | J41: 0 | K41: =SUM(K42:K43) -> 0 | L41: =SUM(L42:L43) -> 0 | M41: 0 | N41: 0 | O41: 0 | P41: 0 | Q41: 0 | R41: 0 | S41: 0 | T41: 0 | U41: 0 | V41: 0 | W41: 0 | X41: 0 | Y41: 0 | Z41: 0 | AA41: 0 | AB41: 0 | AC41: 0 | AD41: 0 | AE41: 0 | AF41: 0 | AG41: 0 | AH41: 0 | AI41: 0 | AJ41: 0 | AK41: 0 | AL41: 0 | AM41: 0 | AN41: 0 | AO41: 0 | AP41: 0 | AQ41: 0 | AR41: 0 | AS41: 0 | AT41: 0 | AU41: 0 | AV41: 0 | AW41: 0 | AX41: 0 | AY41: 0 | AZ41: 0 | BA41: 0 | BB41: 0 | BC41: 0 | BD41: 0 | BE41: 0 | BF41: 0 | BG41: 0 | BH41: 0 | BI41: 0 | BJ41: 0 | BK41: 0 | BL41: 0 | BM41: 0 | BN41: 0 | BO41: 0 | BP41: 0 | BQ41: 0 | BR41: 0 | BS41: 0 | BT41: 0 | BU41: 0 | BV41: 0 | BW41: 0 | BX41: 0 | BY41: 0 | BZ41: 0 | CA41: 0 | CB41: 0 | CC41: 0 | CD41: 0 | CE41: 0 | CF41: 0 | CG41: 0
A42: 41 | G42: (א) | H42: ממשלת ישראל שהונפקו בחו"ל | J42: 0 | K42: 0 | L42: 0 | M42: 0 | N42: 0 | P42: 0 | S42: 0 | T42: 0 | X42: 0 | Y42: 0 | Z42: 0 | AC42: 0 | AD42: 0 | AE42: 0 | AF42: 0 | AG42: 0 | AH42: 0 | AI42: 0 | AJ42: 0 | AK42: 0 | AL42: 0 | CG42: 0
A43: 42 | G43: (ב) | H43: שהנפיקה ממשלה זרה | J43: 0 | K43: 0 | L43: 0 | M43: 0 | N43: 0 | P43: 0 | S43: 0 | T43: 0 | X43: 0 | Y43: 0 | Z43: 0 | AC43: 0 | AD43: 0 | AE43: 0 | AF43: 0 | AG43: 0 | AH43: 0 | AI43: 0 | AJ43: 0 | AK43: 0 | AL43: 0 | CG43: 0
A44: 43 | AC44: 0 | AD44: 0 | AE44: 0 | AF44: 0 | AG44: 0 | AH44: 0 | AI44: 0 | AJ44: 0 | AK44: 0 | AL44: 0 | CG44: 0
A45: 44 | D45: (2 | E45: תעודות חוב מסחריות: | J45: 0 | K45: =SUM(K46,K77) -> 0 | L45: =SUM(L46,L77) -> 0 | M45: 0 | N45: 0 | O45: 0 | P45: 0 | Q45: 0 | R45: 0 | S45: 0 | T45: 0 | U45: 0 | V45: 0 | W45: 0 | X45: 0 | Y45: 0 | Z45: 0 | AA45: 0 | AB45: 0 | AC45: 0 | AD45: 0 | AE45: 0 | AF45: 0 | AG45: 0 | AH45: 0 | AI45: 0 | AJ45: 0 | AK45: 0 | AL45: 0 | AM45: 0 | AN45: 0 | AO45: 0 | AP45: 0 | AQ45: 0 | AR45: 0 | AS45: 0 | AT45: 0 | AU45: 0 | AV45: 0 | AW45: 0 | AX45: 0 | AY45: 0 | AZ45: 0 | BA45: 0 | BB45: 0 | BC45: 0 | BD45: 0 | BE45: 0 | BF45: 0 | BG45: 0 | BH45: 0 | BI45: 0 | BJ45: 0 | BK45: 0 | BL45: 0 | BM45: 0 | BN45: 0 | BO45: 0 | BP45: 0 | BQ45: 0 | BR45: 0 | BS45: 0 | BT45: 0 | BU45: 0 | BV45: 0 | BW45: 0 | BX45: 0 | BY45: 0 | BZ45: 0 | CA45: 0 | CB45: 0 | CC45: 0 | CD45: 0 | CE45: 0 | CF45: 0 | CG45: 0
A46: 45 | E46: א) | F46: בישראל | J46: 0 | K46: =SUM(K47,K60) -> 0 | L46: =SUM(L47,L60) -> 0 | M46: 0 | N46: 0 | O46: 0 | P46: 0 | Q46: 0 | R46: 0 | S46: 0 | T46: 0 | U46: 0 | V46: 0 | W46: 0 | X46: 0 | Y46: 0 | Z46: 0 | AA46: 0 | AB46: 0 | AC46: 0 | AD46: 0 | AE46: 0 | AF46: 0 | AG46: 0 | AH46: 0 | AI46: 0 | AJ46: 0 | AK46: 0 | AL46: 0 | AM46: 0 | AN46: 0 | AO46: 0 | AP46: 0 | AQ46: 0 | AR46: 0 | AS46: 0 | AT46: 0 | AU46: 0 | AV46: 0 | AW46: 0 | AX46: 0 | AY46: 0 | AZ46: 0 | BA46: 0 | BB46: 0 | BC46: 0 | BD46: 0 | BE46: 0 | BF46: 0 | BG46: 0 | BH46: 0 | BI46: 0 | BJ46: 0 | BK46: 0 | BL46: 0 | BM46: 0 | BN46: 0 | BO46: 0 | BP46: 0 | BQ46: 0 | BR46: 0 | BS46: 0 | BT46: 0 | BU46: 0 | BV46: 0 | BW46: 0 | BX46: 0 | BY46: 0 | BZ46: 0 | CA46: 0 | CB46: 0 | CC46: 0 | CD46: 0 | CE46: 0 | CF46: 0 | CG46: 0
A47: 46 | F47: (1) | G47: סחיר | J47: 0 | K47: =SUM(K48,K52,K56) -> 0 | L47: =SUM(L48,L52,L56) -> 0 | M47: 0 | N47: 0 | O47: 0 | P47: 0 | Q47: 0 | R47: 0 | S47: 0 | T47: 0 | U47: 0 | V47: 0 | W47: 0 | X47: 0 | Y47: 0 | Z47: 0 | AA47: 0 | AB47: 0 | AC47: 0 | AD47: 0 | AE47: 0 | AF47: 0 | AG47: 0 | AH47: 0 | AI47: 0 | AJ47: 0 | AK47: 0 | AL47: 0 | AM47: 0 | AN47: 0 | AO47: 0 | AP47: 0 | AQ47: 0 | AR47: 0 | AS47: 0 | AT47: 0 | AU47: 0 | AV47: 0 | AW47: 0 | AX47: 0 | AY47: 0 | AZ47: 0 | BA47: 0 | BB47: 0 | BC47: 0 | BD47: 0 | BE47: 0 | BF47: 0 | BG47: 0 | BH47: 0 | BI47: 0 | BJ47: 0 | BK47: 0 | BL47: 0 | BM47: 0 | BN47: 0 | BO47: 0 | BP47: 0 | BQ47: 0 | BR47: 0 | BS47: 0 | BT47: 0 | BU47: 0 | BV47: 0 | BW47: 0 | BX47: 0 | BY47: 0 | BZ47: 0 | CA47: 0 | CB47: 0 | CC47: 0 | CD47: 0 | CE47: 0 | CF47: 0 | CG47: 0
A48: 47 | G48: (א) | H48: דרוג AA- ומעלה | J48: 0 | K48: =SUM(K49:K51) -> 0 | L48: =SUM(L49:L51) -> 0 | M48: 0 | N48: 0 | O48: 0 | P48: 0 | Q48: 0 | R48: 0 | S48: 0 | T48: 0 | U48: 0 | V48: 0 | W48: 0 | X48: 0 | Y48: 0 | Z48: 0 | AA48: 0 | AB48: 0 | AC48: 0 | AD48: 0 | AE48: 0 | AF48: 0 | AG48: 0 | AH48: 0 | AI48: 0 | AJ48: 0 | AK48: 0 | AL48: 0 | AM48: 0 | AN48: 0 | AO48: 0 | AP48: 0 | AQ48: 0 | AR48: 0 | AS48: 0 | AT48: 0 | AU48: 0 | AV48: 0 | AW48: 0 | AX48: 0 | AY48: 0 | AZ48: 0 | BA48: 0 | BB48: 0 | BC48: 0 | BD48: 0 | BE48: 0 | BF48: 0 | BG48: 0 | BH48: 0 | BI48: 0 | BJ48: 0 | BK48: 0 | BL48: 0 | BM48: 0 | BN48: 0 | BO48: 0 | BP48: 0 | BQ48: 0 | BR48: 0 | BS48: 0 | BT48: 0 | BU48: 0 | BV48: 0 | BW48: 0 | BX48: 0 | BY48: 0 | BZ48: 0 | CA48: 0 | CB48: 0 | CC48: 0 | CD48: 0 | CE48: 0 | CF48: 0 | CG48: 0
A49: 48 | H49: a | I49: צמוד מדד | J49: 0 | K49: 0 | L49: 0 | M49: 0 | N49: 0 | P49: 0 | S49: 0 | T49: 0 | X49: 0 | Y49: 0 | Z49: 0 | AC49: 0 | AD49: 0 | AE49: 0 | AF49: 0 | AG49: 0 | AH49: 0 | AI49: 0 | AJ49: 0 | AK49: 0 | AL49: 0 | CG49: 0
A50: 49 | H50: b | I50: לא צמוד | J50: 0 | K50: 0 | L50: 0 | M50: 0 | N50: 0 | P50: 0 | S50: 0 | T50: 0 | X50: 0 | Y50: 0 | Z50: 0 | AC50: 0 | AD50: 0 | AE50: 0 | AF50: 0 | AG50: 0 | AH50: 0 | AI50: 0 | AJ50: 0 | AK50: 0 | AL50: 0 | CG50: 0
A51: 50 | H51: c | I51: צמוד מט"ח | J51: 0 | K51: 0 | L51: 0 | M51: 0 | N51: 0 | P51: 0 | S51: 0 | T51: 0 | X51: 0 | Y51: 0 | Z51: 0 | AC51: 0 | AD51: 0 | AE51: 0 | AF51: 0 | AG51: 0 | AH51: 0 | AI51: 0 | AJ51: 0 | AK51: 0 | AL51: 0 | CG51: 0
A52: 51 | G52: (ב) | H52: דרוג BBB- ועד A+ | J52: 0 | K52: =SUM(K53:K55) -> 0 | L52: =SUM(L53:L55) -> 0 | M52: 0 | N52: 0 | O52: 0 | P52: 0 | Q52: 0 | R52: 0 | S52: 0 | T52: 0 | U52: 0 | V52: 0 | W52: 0 | X52: 0 | Y52: 0 | Z52: 0 | AA52: 0 | AB52: 0 | AC52: 0 | AD52: 0 | AE52: 0 | AF52: 0 | AG52: 0 | AH52: 0 | AI52: 0 | AJ52: 0 | AK52: 0 | AL52: 0 | AM52: 0 | AN52: 0 | AO52: 0 | AP52: 0 | AQ52: 0 | AR52: 0 | AS52: 0 | AT52: 0 | AU52: 0 | AV52: 0 | AW52: 0 | AX52: 0 | AY52: 0 | AZ52: 0 | BA52: 0 | BB52: 0 | BC52: 0 | BD52: 0 | BE52: 0 | BF52: 0 | BG52: 0 | BH52: 0 | BI52: 0 | BJ52: 0 | BK52: 0 | BL52: 0 | BM52: 0 | BN52: 0 | BO52: 0 | BP52: 0 | BQ52: 0 | BR52: 0 | BS52: 0 | BT52: 0 | BU52: 0 | BV52: 0 | BW52: 0 | BX52: 0 | BY52: 0 | BZ52: 0 | CA52: 0 | CB52: 0 | CC52: 0 | CD52: 0 | CE52: 0 | CF52: 0 | CG52: 0
A53: 52 | H53: a | I53: צמוד מדד | J53: 0 | K53: 0 | L53: 0 | M53: 0 | N53: 0 | P53: 0 | S53: 0 | T53: 0 | X53: 0 | Y53: 0 | Z53: 0 | AC53: 0 | AD53: 0 | AE53: 0 | AF53: 0 | AG53: 0 | AH53: 0 | AI53: 0 | AJ53: 0 | AK53: 0 | AL53: 0 | CG53: 0
A54: 53 | H54: b | I54: לא צמוד | J54: 0 | K54: 0 | L54: 0 | M54: 0 | N54: 0 | P54: 0 | S54: 0 | T54: 0 | X54: 0 | Y54: 0 | Z54: 0 | AC54: 0 | AD54: 0 | AE54: 0 | AF54: 0 | AG54: 0 | AH54: 0 | AI54: 0 | AJ54: 0 | AK54: 0 | AL54: 0 | CG54: 0
A55: 54 | H55: c | I55: צמוד מט"ח | J55: 0 | K55: 0 | L55: 0 | M55: 0 | N55: 0 | P55: 0 | S55: 0 | T55: 0 | X55: 0 | Y55: 0 | Z55: 0 | AC55: 0 | AD55: 0 | AE55: 0 | AF55: 0 | AG55: 0 | AH55: 0 | AI55: 0 | AJ55: 0 | AK55: 0 | AL55: 0 | CG55: 0
A56: 55 | G56: (ג) | H56: דרוג נמוך מ- BBB- או לא מדורג | J56: 0 | K56: =SUM(K57:K59) -> 0 | L56: =SUM(L57:L59) -> 0 | M56: 0 | N56: 0 | O56: 0 | P56: 0 | Q56: 0 | R56: 0 | S56: 0 | T56: 0 | U56: 0 | V56: 0 | W56: 0 | X56: 0 | Y56: 0 | Z56: 0 | AA56: 0 | AB56: 0 | AC56: 0 | AD56: 0 | AE56: 0 | AF56: 0 | AG56: 0 | AH56: 0 | AI56: 0 | AJ56: 0 | AK56: 0 | AL56: 0 | AM56: 0 | AN56: 0 | AO56: 0 | AP56: 0 | AQ56: 0 | AR56: 0 | AS56: 0 | AT56: 0 | AU56: 0 | AV56: 0 | AW56: 0 | AX56: 0 | AY56: 0 | AZ56: 0 | BA56: 0 | BB56: 0 | BC56: 0 | BD56: 0 | BE56: 0 | BF56: 0 | BG56: 0 | BH56: 0 | BI56: 0 | BJ56: 0 | BK56: 0 | BL56: 0 | BM56: 0 | BN56: 0 | BO56: 0 | BP56: 0 | BQ56: 0 | BR56: 0 | BS56: 0 | BT56: 0 | BU56: 0 | BV56: 0 | BW56: 0 | BX56: 0 | BY56: 0 | BZ56: 0 | CA56: 0 | CB56: 0 | CC56: 0 | CD56: 0 | CE56: 0 | CF56: 0 | CG56: 0
A57: 56 | H57: a | I57: צמוד מדד | J57: 0 | K57: 0 | L57: 0 | M57: 0 | N57: 0 | P57: 0 | S57: 0 | T57: 0 | X57: 0 | Y57: 0 | Z57: 0 | AC57: 0 | AD57: 0 | AE57: 0 | AF57: 0 | AG57: 0 | AH57: 0 | AI57: 0 | AJ57: 0 | AK57: 0 | AL57: 0 | CG57: 0
A58: 57 | H58: b | I58: לא צמוד | J58: 0 | K58: 0 | L58: 0 | M58: 0 | N58: 0 | P58: 0 | S58: 0 | T58: 0 | X58: 0 | Y58: 0 | Z58: 0 | AC58: 0 | AD58: 0 | AE58: 0 | AF58: 0 | AG58: 0 | AH58: 0 | AI58: 0 | AJ58: 0 | AK58: 0 | AL58: 0 | CG58: 0
A59: 58 | H59: c | I59: צמוד מט"ח | J59: 0 | K59: 0 | L59: 0 | M59: 0 | N59: 0 | P59: 0 | S59: 0 | T59: 0 | X59: 0 | Y59: 0 | Z59: 0 | AC59: 0 | AD59: 0 | AE59: 0 | AF59: 0 | AG59: 0 | AH59: 0 | AI59: 0 | AJ59: 0 | AK59: 0 | AL59: 0 | CG59: 0
A60: 59 | F60: (2) | G60: לא סחיר | J60: 0 | K60: =SUM(K61,K65,K73,K69) -> 0 | L60: =SUM(L61,L65,L73,L69) -> 0 | M60: 0 | N60: 0 | O60: 0 | P60: 0 | Q60: 0 | R60: 0 | S60: 0 | T60: 0 | U60: 0 | V60: 0 | W60: 0 | X60: 0 | Y60: 0 | Z60: 0 | AA60: 0 | AB60: 0 | AC60: 0 | AD60: 0 | AE60: 0 | AF60: 0 | AG60: 0 | AH60: 0 | AI60: 0 | AJ60: 0 | AK60: 0 | AL60: 0 | AM60: 0 | AN60: 0 | AO60: 0 | AP60: 0 | AQ60: 0 | AR60: 0 | AS60: 0 | AT60: 0 | AU60: 0 | AV60: 0 | AW60: 0 | AX60: 0 | AY60: 0 | AZ60: 0 | BA60: 0 | BB60: 0 | BC60: 0 | BD60: 0 | BE60: 0 | BF60: 0 | BG60: 0 | BH60: 0 | BI60: 0 | BJ60: 0 | BK60: 0 | BL60: 0 | BM60: 0 | BN60: 0 | BO60: 0 | BP60: 0 | BQ60: 0 | BR60: 0 | BS60: 0 | BT60: 0 | BU60: 0 | BV60: 0 | BW60: 0 | BX60: 0 | BY60: 0 | BZ60: 0 | CA60: 0 | CB60: 0 | CC60: 0 | CD60: 0 | CE60: 0 | CF60: 0 | CG60: 0
A61: 60 | G61: (א) | H61: =$H$48 -> דרוג AA- ומעלה | J61: 0 | K61: =SUM(K62:K64) -> 0 | L61: =SUM(L62:L64) -> 0 | M61: 0 | N61: 0 | O61: 0 | P61: 0 | Q61: 0 | R61: 0 | S61: 0 | T61: 0 | U61: 0 | V61: 0 | W61: 0 | X61: 0 | Y61: 0 | Z61: 0 | AA61: 0 | AB61: 0 | AC61: 0 | AD61: 0 | AE61: 0 | AF61: 0 | AG61: 0 | AH61: 0 | AI61: 0 | AJ61: 0 | AK61: 0 | AL61: 0 | AM61: 0 | AN61: 0 | AO61: 0 | AP61: 0 | AQ61: 0 | AR61: 0 | AS61: 0 | AT61: 0 | AU61: 0 | AV61: 0 | AW61: 0 | AX61: 0 | AY61: 0 | AZ61: 0 | BA61: 0 | BB61: 0 | BC61: 0 | BD61: 0 | BE61: 0 | BF61: 0 | BG61: 0 | BH61: 0 | BI61: 0 | BJ61: 0 | BK61: 0 | BL61: 0 | BM61: 0 | BN61: 0 | BO61: 0 | BP61: 0 | BQ61: 0 | BR61: 0 | BS61: 0 | BT61: 0 | BU61: 0 | BV61: 0 | BW61: 0 | BX61: 0 | BY61: 0 | BZ61: 0 | CA61: 0 | CB61: 0 | CC61: 0 | CD61: 0 | CE61: 0 | CF61: 0 | CG61: 0
A62: 61 | H62: a | I62: צמוד מדד | J62: 0 | K62: 0 | L62: 0 | M62: 0 | N62: 0 | P62: 0 | S62: 0 | T62: 0 | X62: 0 | Y62: 0 | Z62: 0 | AC62: 0 | AD62: 0 | AE62: 0 | AF62: 0 | AG62: 0 | AH62: 0 | AI62: 0 | AJ62: 0 | AK62: 0 | AL62: 0 | CG62: 0
A63: 62 | H63: b | I63: לא צמוד | J63: 0 | K63: 0 | L63: 0 | M63: 0 | N63: 0 | P63: 0 | S63: 0 | T63: 0 | X63: 0 | Y63: 0 | Z63: 0 | AC63: 0 | AD63: 0 | AE63: 0 | AF63: 0 | AG63: 0 | AH63: 0 | AI63: 0 | AJ63: 0 | AK63: 0 | AL63: 0 | CG63: 0
A64: 63 | H64: c | I64: צמוד מט"ח | J64: 0 | K64: 0 | L64: 0 | M64: 0 | N64: 0 | P64: 0 | S64: 0 | T64: 0 | X64: 0 | Y64: 0 | Z64: 0 | AC64: 0 | AD64: 0 | AE64: 0 | AF64: 0 | AG64: 0 | AH64: 0 | AI64: 0 | AJ64: 0 | AK64: 0 | AL64: 0 | CG64: 0
A65: 64 | G65: (ב) | H65: =$H$52 -> דרוג BBB- ועד A+ | J65: 0 | K65: =SUM(K66:K68) -> 0 | L65: =SUM(L66:L68) -> 0 | M65: 0 | N65: 0 | O65: 0 | P65: 0 | Q65: 0 | R65: 0 | S65: 0 | T65: 0 | U65: 0 | V65: 0 | W65: 0 | X65: 0 | Y65: 0 | Z65: 0 | AA65: 0 | AB65: 0 | AC65: 0 | AD65: 0 | AE65: 0 | AF65: 0 | AG65: 0 | AH65: 0 | AI65: 0 | AJ65: 0 | AK65: 0 | AL65: 0 | AM65: 0 | AN65: 0 | AO65: 0 | AP65: 0 | AQ65: 0 | AR65: 0 | AS65: 0 | AT65: 0 | AU65: 0 | AV65: 0 | AW65: 0 | AX65: 0 | AY65: 0 | AZ65: 0 | BA65: 0 | BB65: 0 | BC65: 0 | BD65: 0 | BE65: 0 | BF65: 0 | BG65: 0 | BH65: 0 | BI65: 0 | BJ65: 0 | BK65: 0 | BL65: 0 | BM65: 0 | BN65: 0 | BO65: 0 | BP65: 0 | BQ65: 0 | BR65: 0 | BS65: 0 | BT65: 0 | BU65: 0 | BV65: 0 | BW65: 0 | BX65: 0 | BY65: 0 | BZ65: 0 | CA65: 0 | CB65: 0 | CC65: 0 | CD65: 0 | CE65: 0 | CF65: 0 | CG65: 0
A66: 65 | H66: a | I66: צמוד מדד | J66: 0 | K66: 0 | L66: 0 | M66: 0 | N66: 0 | P66: 0 | S66: 0 | T66: 0 | X66: 0 | Y66: 0 | Z66: 0 | AC66: 0 | AD66: 0 | AE66: 0 | AF66: 0 | AG66: 0 | AH66: 0 | AI66: 0 | AJ66: 0 | AK66: 0 | AL66: 0 | CG66: 0
A67: 66 | H67: b | I67: לא צמוד | J67: 0 | K67: 0 | L67: 0 | M67: 0 | N67: 0 | P67: 0 | S67: 0 | T67: 0 | X67: 0 | Y67: 0 | Z67: 0 | AC67: 0 | AD67: 0 | AE67: 0 | AF67: 0 | AG67: 0 | AH67: 0 | AI67: 0 | AJ67: 0 | AK67: 0 | AL67: 0 | CG67: 0
A68: 67 | H68: c | I68: צמוד מט"ח | J68: 0 | K68: 0 | L68: 0 | M68: 0 | N68: 0 | P68: 0 | S68: 0 | T68: 0 | X68: 0 | Y68: 0 | Z68: 0 | AC68: 0 | AD68: 0 | AE68: 0 | AF68: 0 | AG68: 0 | AH68: 0 | AI68: 0 | AJ68: 0 | AK68: 0 | AL68: 0 | CG68: 0
A69: 68 | G69: (ג) | H69: בדרוג נמוך מ- BBB- או לא מדורג עם בטוחה מספקת | J69: 0 | K69: =SUM(K70:K72) -> 0 | L69: =SUM(L70:L72) -> 0 | M69: 0 | N69: 0 | O69: 0 | P69: 0 | Q69: 0 | R69: 0 | S69: 0 | T69: 0 | U69: 0 | V69: 0 | W69: 0 | X69: 0 | Y69: 0 | Z69: 0 | AA69: 0 | AB69: 0 | AC69: 0 | AD69: 0 | AE69: 0 | AF69: 0 | AG69: 0 | AH69: 0 | AI69: 0 | AJ69: 0 | AK69: 0 | AL69: 0 | AM69: 0 | AN69: 0 | AO69: 0 | AP69: 0 | AQ69: 0 | AR69: 0 | AS69: 0 | AT69: 0 | AU69: 0 | AV69: 0 | AW69: 0 | AX69: 0 | AY69: 0 | AZ69: 0 | BA69: 0 | BB69: 0 | BC69: 0 | BD69: 0 | BE69: 0 | BF69: 0 | BG69: 0 | BH69: 0 | BI69: 0 | BJ69: 0 | BK69: 0 | BL69: 0 | BM69: 0 | BN69: 0 | BO69: 0 | BP69: 0 | BQ69: 0 | BR69: 0 | BS69: 0 | BT69: 0 | BU69: 0 | BV69: 0 | BW69: 0 | BX69: 0 | BY69: 0 | BZ69: 0 | CA69: 0 | CB69: 0 | CC69: 0 | CD69: 0 | CE69: 0 | CF69: 0 | CG69: 0
A70: 69 | H70: a | I70: צמוד מדד | J70: 0 | K70: 0 | L70: 0 | M70: 0 | N70: 0 | P70: 0 | S70: 0 | T70: 0 | X70: 0 | Y70: 0 | Z70: 0 | AC70: 0 | AD70: 0 | AE70: 0 | AF70: 0 | AG70: 0 | AH70: 0 | AI70: 0 | AJ70: 0 | AK70: 0 | AL70: 0 | CG70: 0
A71: 70 | H71: b | I71: לא צמוד | J71: 0 | K71: 0 | L71: 0 | M71: 0 | N71: 0 | P71: 0 | S71: 0 | T71: 0 | X71: 0 | Y71: 0 | Z71: 0 | AC71: 0 | AD71: 0 | AE71: 0 | AF71: 0 | AG71: 0 | AH71: 0 | AI71: 0 | AJ71: 0 | AK71: 0 | AL71: 0 | CG71: 0
A72: 71 | H72: c | I72: צמוד מט"ח | J72: 0 | K72: 0 | L72: 0 | M72: 0 | N72: 0 | P72: 0 | S72: 0 | T72: 0 | X72: 0 | Y72: 0 | Z72: 0 | AC72: 0 | AD72: 0 | AE72: 0 | AF72: 0 | AG72: 0 | AH72: 0 | AI72: 0 | AJ72: 0 | AK72: 0 | AL72: 0 | CG72: 0
A73: 72 | G73: (ד) | H73: =$H$56 -> דרוג נמוך מ- BBB- או לא מדורג | J73: 0 | K73: =SUM(K74:K76) -> 0 | L73: =SUM(L74:L76) -> 0 | M73: 0 | N73: 0 | O73: 0 | P73: 0 | Q73: 0 | R73: 0 | S73: 0 | T73: 0 | U73: 0 | V73: 0 | W73: 0 | X73: 0 | Y73: 0 | Z73: 0 | AA73: 0 | AB73: 0 | AC73: 0 | AD73: 0 | AE73: 0 | AF73: 0 | AG73: 0 | AH73: 0 | AI73: 0 | AJ73: 0 | AK73: 0 | AL73: 0 | AM73: 0 | AN73: 0 | AO73: 0 | AP73: 0 | AQ73: 0 | AR73: 0 | AS73: 0 | AT73: 0 | AU73: 0 | AV73: 0 | AW73: 0 | AX73: 0 | AY73: 0 | AZ73: 0 | BA73: 0 | BB73: 0 | BC73: 0 | BD73: 0 | BE73: 0 | BF73: 0 | BG73: 0 | BH73: 0 | BI73: 0 | BJ73: 0 | BK73: 0 | BL73: 0 | BM73: 0 | BN73: 0 | BO73: 0 | BP73: 0 | BQ73: 0 | BR73: 0 | BS73: 0 | BT73: 0 | BU73: 0 | BV73: 0 | BW73: 0 | BX73: 0 | BY73: 0 | BZ73: 0 | CA73: 0 | CB73: 0 | CC73: 0 | CD73: 0 | CE73: 0 | CF73: 0 | CG73: 0
A74: 73 | H74: a | I74: צמוד מדד | J74: 0 | K74: 0 | L74: 0 | M74: 0 | N74: 0 | P74: 0 | S74: 0 | T74: 0 | X74: 0 | Y74: 0 | Z74: 0 | AC74: 0 | AD74: 0 | AE74: 0 | AF74: 0 | AG74: 0 | AH74: 0 | AI74: 0 | AJ74: 0 | AK74: 0 | AL74: 0 | CG74: 0
A75: 74 | H75: b | I75: לא צמוד | J75: 0 | K75: 0 | L75: 0 | M75: 0 | N75: 0 | P75: 0 | S75: 0 | T75: 0 | X75: 0 | Y75: 0 | Z75: 0 | AC75: 0 | AD75: 0 | AE75: 0 | AF75: 0 | AG75: 0 | AH75: 0 | AI75: 0 | AJ75: 0 | AK75: 0 | AL75: 0 | CG75: 0
A76: =A75+1 -> 75 | H76: c | I76: צמוד מט"ח | J76: =SUM(K76:CG76) -> 0 | K76: 0 | L76: 0 | M76: 0 | N76: 0 | P76: 0 | S76: 0 | T76: 0 | X76: 0 | Y76: 0 | Z76: 0 | AC76: 0 | AD76: 0 | AE76: 0 | AF76: 0 | AG76: 0 | AH76: 0 | AI76: 0 | AJ76: 0 | AK76: 0 | AL76: 0 | CG76: 0
A77: 76 | E77: ב) | F77: בחו"ל | J77: 0 | K77: =SUM(K78,K82,K87,K91) -> 0 | L77: =SUM(L78,L82,L87,L91) -> 0 | M77: 0 | N77: 0 | O77: 0 | P77: 0 | Q77: 0 | R77: 0 | S77: 0 | T77: 0 | U77: 0 | V77: 0 | W77: 0 | X77: 0 | Y77: 0 | Z77: 0 | AA77: 0 | AB77: 0 | AC77: 0 | AD77: 0 | AE77: 0 | AF77: 0 | AG77: 0 | AH77: 0 | AI77: 0 | AJ77: 0 | AK77: 0 | AL77: 0 | AM77: 0 | AN77: 0 | AO77: 0 | AP77: 0 | AQ77: 0 | AR77: 0 | AS77: 0 | AT77: 0 | AU77: 0 | AV77: 0 | AW77: 0 | AX77: 0 | AY77: 0 | AZ77: 0 | BA77: 0 | BB77: 0 | BC77: 0 | BD77: 0 | BE77: 0 | BF77: 0 | BG77: 0 | BH77: 0 | BI77: 0 | BJ77: 0 | BK77: 0 | BL77: 0 | BM77: 0 | BN77: 0 | BO77: 0 | BP77: 0 | BQ77: 0 | BR77: 0 | BS77: 0 | BT77: 0 | BU77: 0 | BV77: 0 | BW77: 0 | BX77: 0 | BY77: 0 | BZ77: 0 | CA77: 0 | CB77: 0 | CC77: 0 | CD77: 0 | CE77: 0 | CF77: 0 | CG77: 0
A78: 77 | F78: (1) | G78: סחיר - חברות ישראליות | J78: 0 | K78: =SUM(K79:K81) -> 0 | L78: =SUM(L79:L81) -> 0 | M78: 0 | N78: 0 | O78: 0 | P78: 0 | Q78: 0 | R78: 0 | S78: 0 | T78: 0 | U78: 0 | V78: 0 | W78: 0 | X78: 0 | Y78: 0 | Z78: 0 | AA78: 0 | AB78: 0 | AC78: 0 | AD78: 0 | AE78: 0 | AF78: 0 | AG78: 0 | AH78: 0 | AI78: 0 | AJ78: 0 | AK78: 0 | AL78: 0 | AM78: 0 | AN78: 0 | AO78: 0 | AP78: 0 | AQ78: 0 | AR78: 0 | AS78: 0 | AT78: 0 | AU78: 0 | AV78: 0 | AW78: 0 | AX78: 0 | AY78: 0 | AZ78: 0 | BA78: 0 | BB78: 0 | BC78: 0 | BD78: 0 | BE78: 0 | BF78: 0 | BG78: 0 | BH78: 0 | BI78: 0 | BJ78: 0 | BK78: 0 | BL78: 0 | BM78: 0 | BN78: 0 | BO78: 0 | BP78: 0 | BQ78: 0 | BR78: 0 | BS78: 0 | BT78: 0 | BU78: 0 | BV78: 0 | BW78: 0 | BX78: 0 | BY78: 0 | BZ78: 0 | CA78: 0 | CB78: 0 | CC78: 0 | CD78: 0 | CE78: 0 | CF78: 0 | CG78: 0
A79: 78 | G79: (א) | H79: דרוג A- ומעלה | J79: 0 | K79: 0 | L79: 0 | M79: 0 | N79: 0 | P79: 0 | S79: 0 | T79: 0 | X79: 0 | Y79: 0 | Z79: 0 | AC79: 0 | AD79: 0 | AE79: 0 | AF79: 0 | AG79: 0 | AH79: 0 | AI79: 0 | AJ79: 0 | AK79: 0 | AL79: 0 | CG79: 0
A80: 79 | G80: (ב) | H80: דרוג BBB- ועד BBB+ | J80: 0 | K80: 0 | L80: 0 | M80: 0 | N80: 0 | P80: 0 | S80: 0 | T80: 0 | X80: 0 | Y80: 0 | Z80: 0 | AC80: 0 | AD80: 0 | AE80: 0 | AF80: 0 | AG80: 0 | AH80: 0 | AI80: 0 | AJ80: 0 | AK80: 0 | AL80: 0 | CG80: 0
A81: 80 | G81: (ג) | H81: דרוג נמוך מ- BBB- או לא מדורג | J81: 0 | K81: 0 | L81: 0 | M81: 0 | N81: 0 | P81: 0 | S81: 0 | T81: 0 | X81: 0 | Y81: 0 | Z81: 0 | AC81: 0 | AD81: 0 | AE81: 0 | AF81: 0 | AG81: 0 | AH81: 0 | AI81: 0 | AJ81: 0 | AK81: 0 | AL81: 0 | CG81: 0
A82: 81 | F82: (2) | G82: לא סחיר - חברות ישראליות | J82: 0 | K82: =SUM(K83:K86) -> 0 | L82: =SUM(L83:L86) -> 0 | M82: 0 | N82: 0 | O82: 0 | P82: 0 | Q82: 0 | R82: 0 | S82: 0 | T82: 0 | U82: 0 | V82: 0 | W82: 0 | X82: 0 | Y82: 0 | Z82: 0 | AA82: 0 | AB82: 0 | AC82: 0 | AD82: 0 | AE82: 0 | AF82: 0 | AG82: 0 | AH82: 0 | AI82: 0 | AJ82: 0 | AK82: 0 | AL82: 0 | AM82: 0 | AN82: 0 | AO82: 0 | AP82: 0 | AQ82: 0 | AR82: 0 | AS82: 0 | AT82: 0 | AU82: 0 | AV82: 0 | AW82: 0 | AX82: 0 | AY82: 0 | AZ82: 0 | BA82: 0 | BB82: 0 | BC82: 0 | BD82: 0 | BE82: 0 | BF82: 0 | BG82: 0 | BH82: 0 | BI82: 0 | BJ82: 0 | BK82: 0 | BL82: 0 | BM82: 0 | BN82: 0 | BO82: 0 | BP82: 0 | BQ82: 0 | BR82: 0 | BS82: 0 | BT82: 0 | BU82: 0 | BV82: 0 | BW82: 0 | BX82: 0 | BY82: 0 | BZ82: 0 | CA82: 0 | CB82: 0 | CC82: 0 | CD82: 0 | CE82: 0 | CF82: 0 | CG82: 0
A83: 82 | G83: (א) | H83: =$H$79 -> דרוג A- ומעלה | J83: 0 | K83: 0 | L83: 0 | M83: 0 | N83: 0 | P83: 0 | S83: 0 | T83: 0 | X83: 0 | Y83: 0 | Z83: 0 | AC83: 0 | AD83: 0 | AE83: 0 | AF83: 0 | AG83: 0 | AH83: 0 | AI83: 0 | AJ83: 0 | AK83: 0 | AL83: 0 | CG83: 0
A84: 83 | G84: (ב) | H84: =$H$80 -> דרוג BBB- ועד BBB+ | J84: 0 | K84: 0 | L84: 0 | M84: 0 | N84: 0 | P84: 0 | S84: 0 | T84: 0 | X84: 0 | Y84: 0 | Z84: 0 | AC84: 0 | AD84: 0 | AE84: 0 | AF84: 0 | AG84: 0 | AH84: 0 | AI84: 0 | AJ84: 0 | AK84: 0 | AL84: 0 | CG84: 0
A85: 84 | G85: (ג) | H85: =$H$69 -> בדרוג נמוך מ- BBB- או לא מדורג עם בטוחה מספקת | J85: 0 | K85: 0 | L85: 0 | M85: 0 | N85: 0 | P85: 0 | S85: 0 | T85: 0 | X85: 0 | Y85: 0 | Z85: 0 | AC85: 0 | AD85: 0 | AE85: 0 | AF85: 0 | AG85: 0 | AH85: 0 | AI85: 0 | AJ85: 0 | AK85: 0 | AL85: 0 | CG85: 0
A86: 85 | G86: (ד) | H86: =H81 -> דרוג נמוך מ- BBB- או לא מדורג | J86: 0 | K86: 0 | L86: 0 | M86: 0 | N86: 0 | P86: 0 | S86: 0 | T86: 0 | X86: 0 | Y86: 0 | Z86: 0 | AC86: 0 | AD86: 0 | AE86: 0 | AF86: 0 | AG86: 0 | AH86: 0 | AI86: 0 | AJ86: 0 | AK86: 0 | AL86: 0 | CG86: 0
A87: 86 | F87: (3) | G87: סחיר - חברות זרות | J87: 0 | K87: =SUM(K88:K90) -> 0 | L87: =SUM(L88:L90) -> 0 | M87: 0 | N87: 0 | O87: 0 | P87: 0 | Q87: 0 | R87: 0 | S87: 0 | T87: 0 | U87: 0 | V87: 0 | W87: 0 | X87: 0 | Y87: 0 | Z87: 0 | AA87: 0 | AB87: 0 | AC87: 0 | AD87: 0 | AE87: 0 | AF87: 0 | AG87: 0 | AH87: 0 | AI87: 0 | AJ87: 0 | AK87: 0 | AL87: 0 | AM87: 0 | AN87: 0 | AO87: 0 | AP87: 0 | AQ87: 0 | AR87: 0 | AS87: 0 | AT87: 0 | AU87: 0 | AV87: 0 | AW87: 0 | AX87: 0 | AY87: 0 | AZ87: 0 | BA87: 0 | BB87: 0 | BC87: 0 | BD87: 0 | BE87: 0 | BF87: 0 | BG87: 0 | BH87: 0 | BI87: 0 | BJ87: 0 | BK87: 0 | BL87: 0 | BM87: 0 | BN87: 0 | BO87: 0 | BP87: 0 | BQ87: 0 | BR87: 0 | BS87: 0 | BT87: 0 | BU87: 0 | BV87: 0 | BW87: 0 | BX87: 0 | BY87: 0 | BZ87: 0 | CA87: 0 | CB87: 0 | CC87: 0 | CD87: 0 | CE87: 0 | CF87: 0 | CG87: 0
A88: 87 | G88: (א) | H88: =$H$79 -> דרוג A- ומעלה | J88: 0 | K88: 0 | L88: 0 | M88: 0 | N88: 0 | P88: 0 | S88: 0 | T88: 0 | X88: 0 | Y88: 0 | Z88: 0 | AC88: 0 | AD88: 0 | AE88: 0 | AF88: 0 | AG88: 0 | AH88: 0 | AI88: 0 | AJ88: 0 | AK88: 0 | AL88: 0 | CG88: 0
A89: 88 | G89: (ב) | H89: =$H$80 -> דרוג BBB- ועד BBB+ | J89: 0 | K89: 0 | L89: 0 | M89: 0 | N89: 0 | P89: 0 | S89: 0 | T89: 0 | X89: 0 | Y89: 0 | Z89: 0 | AC89: 0 | AD89: 0 | AE89: 0 | AF89: 0 | AG89: 0 | AH89: 0 | AI89: 0 | AJ89: 0 | AK89: 0 | AL89: 0 | CG89: 0
A90: 89 | G90: (ג) | H90: =$H$81 -> דרוג נמוך מ- BBB- או לא מדורג | J90: 0 | K90: 0 | L90: 0 | M90: 0 | N90: 0 | P90: 0 | S90: 0 | T90: 0 | X90: 0 | Y90: 0 | Z90: 0 | AC90: 0 | AD90: 0 | AE90: 0 | AF90: 0 | AG90: 0 | AH90: 0 | AI90: 0 | AJ90: 0 | AK90: 0 | AL90: 0 | CG90: 0
A91: 90 | F91: (4) | G91: לא סחיר - חברות זרות | J91: 0 | K91: =SUM(K92:K95) -> 0 | L91: =SUM(L92:L95) -> 0 | M91: 0 | N91: 0 | O91: 0 | P91: 0 | Q91: 0 | R91: 0 | S91: 0 | T91: 0 | U91: 0 | V91: 0 | W91: 0 | X91: 0 | Y91: 0 | Z91: 0 | AA91: 0 | AB91: 0 | AC91: 0 | AD91: 0 | AE91: 0 | AF91: 0 | AG91: 0 | AH91: 0 | AI91: 0 | AJ91: 0 | AK91: 0 | AL91: 0 | AM91: 0 | AN91: 0 | AO91: 0 | AP91: 0 | AQ91: 0 | AR91: 0 | AS91: 0 | AT91: 0 | AU91: 0 | AV91: 0 | AW91: 0 | AX91: 0 | AY91: 0 | AZ91: 0 | BA91: 0 | BB91: 0 | BC91: 0 | BD91: 0 | BE91: 0 | BF91: 0 | BG91: 0 | BH91: 0 | BI91: 0 | BJ91: 0 | BK91: 0 | BL91: 0 | BM91: 0 | BN91: 0 | BO91: 0 | BP91: 0 | BQ91: 0 | BR91: 0 | BS91: 0 | BT91: 0 | BU91: 0 | BV91: 0 | BW91: 0 | BX91: 0 | BY91: 0 | BZ91: 0 | CA91: 0 | CB91: 0 | CC91: 0 | CD91: 0 | CE91: 0 | CF91: 0 | CG91: 0
A92: 91 | G92: (א) | H92: =$H$79 -> דרוג A- ומעלה | J92: 0 | K92: 0 | L92: 0 | M92: 0 | N92: 0 | P92: 0 | S92: 0 | T92: 0 | X92: 0 | Y92: 0 | Z92: 0 | AC92: 0 | AD92: 0 | AE92: 0 | AF92: 0 | AG92: 0 | AH92: 0 | AI92: 0 | AJ92: 0 | AK92: 0 | AL92: 0 | CG92: 0
A93: 92 | G93: (ב) | H93: =$H$80 -> דרוג BBB- ועד BBB+ | J93: 0 | K93: 0 | L93: 0 | M93: 0 | N93: 0 | P93: 0 | S93: 0 | T93: 0 | X93: 0 | Y93: 0 | Z93: 0 | AC93: 0 | AD93: 0 | AE93: 0 | AF93: 0 | AG93: 0 | AH93: 0 | AI93: 0 | AJ93: 0 | AK93: 0 | AL93: 0 | CG93: 0
A94: 93 | G94: (ג) | H94: =$H$69 -> בדרוג נמוך מ- BBB- או לא מדורג עם בטוחה מספקת | J94: 0 | K94: 0 | L94: 0 | M94: 0 | N94: 0 | P94: 0 | S94: 0 | T94: 0 | X94: 0 | Y94: 0 | Z94: 0 | AC94: 0 | AD94: 0 | AE94: 0 | AF94: 0 | AG94: 0 | AH94: 0 | AI94: 0 | AJ94: 0 | AK94: 0 | AL94: 0 | CG94: 0
A95: 94 | G95: (ד) | H95: =H90 -> דרוג נמוך מ- BBB- או לא מדורג | J95: 0 | K95: 0 | L95: 0 | M95: 0 | N95: 0 | P95: 0 | S95: 0 | T95: 0 | X95: 0 | Y95: 0 | Z95: 0 | AC95: 0 | AD95: 0 | AE95: 0 | AF95: 0 | AG95: 0 | AH95: 0 | AI95: 0 | AJ95: 0 | AK95: 0 | AL95: 0 | CG95: 0
A96: 95 | AC96: 0 | AD96: 0 | AE96: 0 | AF96: 0 | AG96: 0 | AH96: 0 | AI96: 0 | AJ96: 0 | AK96: 0 | AL96: 0 | CG96: 0
A97: 96 | D97: (3 | E97: אג"ח קונצרני: | J97: 8465152.33 | K97: =SUM(K98,K136) -> 182.1283336 | L97: =SUM(L98,L136) -> 71644.5285 | M97: 2321486.607 | N97: 79105.13623 | O97: 2084908.77 | P97: 284752.5208 | Q97: 1254152.51 | R97: 361178.4 | S97: 3894.574405 | T97: 2366.638565 | U97: 54822.61 | V97: 0 | W97: 66226.5 | X97: 152.3414351 | Y97: 16375.10924 | Z97: 156.1255954 | AA97: 6582.98 | AB97: 0 | AC97: 222045.0885 | AD97: 100598.7465 | AE97: 223474.7173 | AF97: 337658.9026 | AG97: 192623.8224 | AH97: 4258.751462 | AI97: 13677.93354 | AJ97: 38286.23268 | AK97: 181810.2174 | AL97: 83716.4376 | AM97: 0 | AN97: 0 | AO97: 0 | AP97: 0 | AQ97: 0 | AR97: 0 | AS97: 0 | AT97: 0 | AU97: 0 | AV97: 0 | AW97: 0 | AX97: 0 | AY97: 0 | AZ97: 0 | BA97: 0 | BB97: 0 | BC97: 0 | BD97: 0 | BE97: 0 | BF97: 0 | BG97: 0 | BH97: 0 | BI97: 0 | BJ97: 0 | BK97: 0 | BL97: 0 | BM97: 0 | BN97: 0 | BO97: 0 | BP97: 0 | BQ97: 0 | BR97: 0 | BS97: 0 | BT97: 0 | BU97: 0 | BV97: 0 | BW97: 0 | BX97: 0 | BY97: 0 | BZ97: 0 | CA97: 0 | CB97: 0 | CC97: 0 | CD97: 0 | CE97: 0 | CF97: 0 | CG97: 459014
A98: 97 | E98: א) | F98: בישראל | J98: 5893585.03 | K98: =SUM(K99,K115) -> 127.4043722 | L98: =SUM(L99,L115) -> 50117.5517 | M98: 1623951.298 | N98: 55336.47631 | O98: 1422625.73 | P98: 236773.2299 | Q98: 870622.54 | R98: 302970.79 | S98: 3876.489396 | T98: 2366.638565 | U98: 468.81 | V98: 0 | W98: 49887.4 | X98: 152.3414351 | Y98: 13615.9901 | Z98: 155.400604 | AA98: 66.8 | AB98: 0 | AC98: 140055.07 | AD98: 62686.38069 | AE98: 164911.449 | AF98: 250304.6993 | AG98: 130819.6272 | AH98: 2686.209986 | AI98: 8523.169313 | AJ98: 28253.03097 | AK98: 134774.9207 | AL98: 56855.65277 | AM98: 0 | AN98: 0 | AO98: 0 | AP98: 0 | AQ98: 0 | AR98: 0 | AS98: 0 | AT98: 0 | AU98: 0 | AV98: 0 | AW98: 0 | AX98: 0 | AY98: 0 | AZ98: 0 | BA98: 0 | BB98: 0 | BC98: 0 | BD98: 0 | BE98: 0 | BF98: 0 | BG98: 0 | BH98: 0 | BI98: 0 | BJ98: 0 | BK98: 0 | BL98: 0 | BM98: 0 | BN98: 0 | BO98: 0 | BP98: 0 | BQ98: 0 | BR98: 0 | BS98: 0 | BT98: 0 | BU98: 0 | BV98: 0 | BW98: 0 | BX98: 0 | BY98: 0 | BZ98: 0 | CA98: 0 | CB98: 0 | CC98: 0 | CD98: 0 | CE98: 0 | CF98: 0 | CG98: 280599.93
A99: 98 | F99: (1) | G99: סחיר | J99: 5217195.09 | K99: =SUM(K100,K105,K110) -> 106.9514072 | L99: =SUM(L100,L105,L110) -> 42071.88958 | M99: 1363248.949 | N99: 46452.98987 | O99: 1255732.61 | P99: 217744.9111 | Q99: 805860.29 | R99: 284772.95 | S99: 3876.489396 | T99: 2366.638565 | U99: 299.51 | V99: 0 | W99: 47289.9 | X99: 152.3414351 | Y99: 12521.73886 | Z99: 155.400604 | AA99: 53.17 | AB99: 0 | AC99: 122713.6134 | AD99: 55000.83748 | AE99: 150074.3559 | AF99: 230583.4282 | AG99: 120617.6912 | AH99: 2353.606576 | AI99: 7478.202523 | AJ99: 25711.10405 | AK99: 124156.1318 | AL99: 52421.77884 | AM99: 0 | AN99: 0 | AO99: 0 | AP99: 0 | AQ99: 0 | AR99: 0 | AS99: 0 | AT99: 0 | AU99: 0 | AV99: 0 | AW99: 0 | AX99: 0 | AY99: 0 | AZ99: 0 | BA99: 0 | BB99: 0 | BC99: 0 | BD99: 0 | BE99: 0 | BF99: 0 | BG99: 0 | BH99: 0 | BI99: 0 | BJ99: 0 | BK99: 0 | BL99: 0 | BM99: 0 | BN99: 0 | BO99: 0 | BP99: 0 | BQ99: 0 | BR99: 0 | BS99: 0 | BT99: 0 | BU99: 0 | BV99: 0 | BW99: 0 | BX99: 0 | BY99: 0 | BZ99: 0 | CA99: 0 | CB99: 0 | CC99: 0 | CD99: 0 | CE99: 0 | CF99: 0 | CG99: 243377.61
A100: 99 | G100: (א) | H100: =$H$48 -> דרוג AA- ומעלה | J100: 3844059.03 | K100: =SUM(K101:K104) -> 77.4524595 | L100: =SUM(L101:L104) -> 30467.77419 | M100: 987242.588 | N100: 33640.49535 | O100: 946673.52 | P100: 162551.4421 | Q100: 608808.76 | R100: 211963.55 | S100: 981.9265543 | T100: 1327.808459 | U100: 299.51 | V100: 0 | W100: 29329.1 | X100: 85.47154142 | Y100: 9347.757886 | Z100: 39.36344566 | AA100: 53.17 | AB100: 0 | AC100: 89190.32895 | AD100: 40480.63096 | AE100: 100290.9588 | AF100: 166918.1233 | AG100: 85799.93987 | AH100: 1710.641052 | AI100: 5503.959039 | AJ100: 17182.09124 | AK100: 89875.96672 | AL100: 37289.60013 | AM100: 0 | AN100: 0 | AO100: 0 | AP100: 0 | AQ100: 0 | AR100: 0 | AS100: 0 | AT100: 0 | AU100: 0 | AV100: 0 | AW100: 0 | AX100: 0 | AY100: 0 | AZ100: 0 | BA100: 0 | BB100: 0 | BC100: 0 | BD100: 0 | BE100: 0 | BF100: 0 | BG100: 0 | BH100: 0 | BI100: 0 | BJ100: 0 | BK100: 0 | BL100: 0 | BM100: 0 | BN100: 0 | BO100: 0 | BP100: 0 | BQ100: 0 | BR100: 0 | BS100: 0 | BT100: 0 | BU100: 0 | BV100: 0 | BW100: 0 | BX100: 0 | BY100: 0 | BZ100: 0 | CA100: 0 | CB100: 0 | CC100: 0 | CD100: 0 | CE100: 0 | CF100: 0 | CG100: 186927.1
A101: 100 | H101: a | I101: צמוד מדד | J101: 3273273.05 | K101: 65.82846368 | L101: 25895.1979 | M101: 839078.1037 | N101: 28591.75991 | O101: 877159.28 | P101: 114048.7691 | Q101: 537148.5 | R101: 145917.01 | S101: 328.5395166 | T101: 0 | W101: 18964.73 | X101: 0 | Y101: 6558.540896 | Z101: 13.17048342 | AC101: 69295.95644 | AD101: 33214.66925 | AE101: 79343.43887 | AF101: 135294.12 | AG101: 67860.68004 | AH101: 1329.073558 | AI101: 4516.040751 | AJ101: 13593.31113 | AK101: 72848.22996 | AL101: 29492.99996 | CG101: 172715.1
A102: 101 | H102: b | I102: לא צמוד | J102: 515547.54 | K102: 10.51831696 | L102: 4137.631112 | M102: 134071.0227 | N102: 4568.497827 | O102: 54781.15 | P102: 46587.06296 | Q102: 62638.12 | R102: 63595.68 | S102: 647.8586593 | T102: 1327.808459 | W102: 10045.82 | X102: 85.47154142 | Y102: 2679.057039 | Z102: 25.97134074 | AC102: 18730.47566 | AD102: 6708.092533 | AE102: 19614.84671 | AF102: 29351.5505 | AG102: 16799.44565 | AH102: 359.244337 | AI102: 912.0674667 | AJ102: 3360.463295 | AK102: 15804.1495 | AL102: 7301.224354 | CG102: 11404.31
A103: 102 | H103: c | I103: צמוד מט"ח | J103: 55238.44 | K103: 1.105678859 | L103: 434.9451783 | M103: 14093.46153 | N103: 480.2376161 | O103: 14733.09 | P103: 1915.610049 | Q103: 9022.14 | R103: 2450.86 | S103: 5.528378509 | T103: 0 | U103: 299.51 | W103: 318.55 | X103: 0 | Y103: 110.1599513 | Z103: 0.221621491 | AA103: 53.17 | AC103: 1163.896843 | AD103: 557.8691786 | AE103: 1332.673185 | AF103: 2272.452749 | AG103: 1139.814185 | AH103: 22.32315704 | AI103: 75.85082138 | AJ103: 228.3168148 | AK103: 1223.587251 | AL103: 495.3758153 | CG103: 2807.69
A104: 103 | H104: d | I104: אחר | J104: 0 | K104: 0 | L104: 0 | M104: 0 | N104: 0 | P104: 0 | S104: 0 | T104: 0 | X104: 0 | Y104: 0 | Z104: 0 | AC104: 0 | AD104: 0 | AE104: 0 | AF104: 0 | AG104: 0 | AH104: 0 | AI104: 0 | AJ104: 0 | AK104: 0 | AL104: 0 | CG104: 0
A105: 104 | G105: (ב) | H105: =$H$52 -> דרוג BBB- ועד A+ | J105: 1258030.15 | K105: =SUM(K106:K109) -> 26.83866214 | L105: =SUM(L106:L109) -> 10557.62855 | M105: 342097.2096 | N105: 11657.03317 | O105: 279417.11 | P105: 51692.46913 | Q105: 183570.79 | R105: 68476.37 | S105: 2823.82844 | T105: 1038.830106 | U105: 0 | V105: 0 | W105: 15827.8 | X105: 66.86989368 | Y105: 2972.650871 | Z105: 113.2015596 | AA105: 0 | AB105: 0 | AC105: 31945.95709 | AD105: 13672.1348 | AE105: 43405.93033 | AF105: 59127.69899 | AG105: 32089.84113 | AH105: 612.712906 | AI105: 1858.935202 | AJ105: 7436.409667 | AK105: 31836.92101 | AL105: 13946.59887 | AM105: 0 | AN105: 0 | AO105: 0 | AP105: 0 | AQ105: 0 | AR105: 0 | AS105: 0 | AT105: 0 | AU105: 0 | AV105: 0 | AW105: 0 | AX105: 0 | AY105: 0 | AZ105: 0 | BA105: 0 | BB105: 0 | BC105: 0 | BD105: 0 | BE105: 0 | BF105: 0 | BG105: 0 | BH105: 0 | BI105: 0 | BJ105: 0 | BK105: 0 | BL105: 0 | BM105: 0 | BN105: 0 | BO105: 0 | BP105: 0 | BQ105: 0 | BR105: 0 | BS105: 0 | BT105: 0 | BU105: 0 | BV105: 0 | BW105: 0 | BX105: 0 | BY105: 0 | BZ105: 0 | CA105: 0 | CB105: 0 | CC105: 0 | CD105: 0 | CE105: 0 | CF105: 0 | CG105: 51758.38
A106: 105 | H106: a | I106: צמוד מדד | J106: 643377.49 | K106: 13.20963201 | L106: 5196.324144 | M106: 168375.6898 | N106: 5737.43645 | O106: 171594.15 | P106: 22153.03726 | Q106: 101705.09 | R106: 28117.5 | S106: 88.32906672 | T106: 0 | W106: 4849.86 | X106: 0 | Y106: 1273.942735 | Z106: 3.540933283 | AC106: 12986.51297 | AD106: 6307.085548 | AE106: 18326.44826 | AF106: 26598.87209 | AG106: 13650.13206 | AH106: 249.0770296 | AI106: 857.5444524 | AJ106: 3139.731737 | AK106: 14321.98791 | AL106: 5932.497937 | CG106: 31899.49
A107: 106 | H107: b | I107: לא צמוד | J107: 517557.49 | K107: 11.67303839 | L107: 4591.868357 | M107: 148789.6021 | N107: 5070.036464 | O107: 81759.52 | P107: 26150.63932 | Q107: 65905.17 | R107: 36023.2 | S107: 2725.71174 | T107: 1038.830106 | W107: 10414.41 | X107: 66.86989368 | Y107: 1503.830675 | Z107: 109.2682599 | AC107: 16900.46467 | AD107: 6378.161666 | AE107: 22721.92456 | AF107: 28508.76357 | AG107: 16423.32279 | AH107: 324.1453305 | AI107: 867.2083344 | AJ107: 3892.775438 | AK107: 15350.35643 | AL107: 7137.757212 | CG107: 14891.98
A108: 107 | H108: c | I108: צמוד מט"ח | J108: 97095.17 | K108: 1.955991739 | L108: 769.4360516 | M108: 24931.9177 | N108: 849.5602519 | O108: 26063.44 | P108: 3388.79254 | Q108: 15960.53 | R108: 4335.67 | S108: 9.787633604 | T108: 0 | W108: 563.53 | X108: 0 | Y108: 194.8774602 | Z108: 0.3923663962 | AC108: 2058.979454 | AD108: 986.8875845 | AE108: 2357.557508 | AF108: 4020.06332 | AG108: 2016.386283 | AH108: 39.49054589 | AI108: 134.1824155 | AJ108: 403.9024923 | AK108: 2164.57668 | AL108: 876.3437168 | CG108: 4966.91
A109: 108 | H109: d | I109: אחר | J109: 0 | K109: 0 | L109: 0 | M109: 0 | N109: 0 | P109: 0 | S109: 0 | T109: 0 | X109: 0 | Y109: 0 | Z109: 0 | AC109: 0 | AD109: 0 | AE109: 0 | AF109: 0 | AG109: 0 | AH109: 0 | AI109: 0 | AJ109: 0 | AK109: 0 | AL109: 0 | CG109: 0
A110: 109 | G110: (ג) | H110: =$H$56 -> דרוג נמוך מ- BBB- או לא מדורג | J110: 115105.91 | K110: =SUM(K111:K114) -> 2.660285544 | L110: =SUM(L111:L114) -> 1046.486836 | M110: 33909.15153 | N110: 1155.461351 | O110: 29641.98 | P110: 3500.999892 | Q110: 13480.74 | R110: 4333.03 | S110: 70.7344012 | T110: 0 | U110: 0 | V110: 0 | W110: 2133 | X110: 0 | Y110: 201.3301077 | Z110: 2.835598799 | AA110: 0 | AB110: 0 | AC110: 1577.327382 | AD110: 848.0717183 | AE110: 6377.466852 | AF110: 4537.605912 | AG110: 2727.910159 | AH110: 30.25261823 | AI110: 115.3082817 | AJ110: 1092.603148 | AK110: 2443.244088 | AL110: 1185.579841 | AM110: 0 | AN110: 0 | AO110: 0 | AP110: 0 | AQ110: 0 | AR110: 0 | AS110: 0 | AT110: 0 | AU110: 0 | AV110: 0 | AW110: 0 | AX110: 0 | AY110: 0 | AZ110: 0 | BA110: 0 | BB110: 0 | BC110: 0 | BD110: 0 | BE110: 0 | BF110: 0 | BG110: 0 | BH110: 0 | BI110: 0 | BJ110: 0 | BK110: 0 | BL110: 0 | BM110: 0 | BN110: 0 | BO110: 0 | BP110: 0 | BQ110: 0 | BR110: 0 | BS110: 0 | BT110: 0 | BU110: 0 | BV110: 0 | BW110: 0 | BX110: 0 | BY110: 0 | BZ110: 0 | CA110: 0 | CB110: 0 | CC110: 0 | CD110: 0 | CE110: 0 | CF110: 0 | CG110: 4692.13
A111: 110 | H111: a | I111: צמוד מדד | J111: 71192.5 | K111: 1.636754615 | L111: 643.856507 | M111: 20862.78309 | N111: 710.9036484 | O111: 18207.19 | P111: 2238.823205 | Q111: 8401.3 | R111: 2680.78 | S111: 26.3150817 | T111: 0 | W111: 1321.91 | X111: 0 | Y111: 128.7467954 | Z111: 1.054918297 | AC111: 974.7643419 | AD111: 534.4089539 | AE111: 3931.411082 | AF111: 2915.771821 | AG111: 1713.886169 | AH111: 18.69565813 | AI111: 72.6610461 | AJ111: 673.5389185 | AK111: 1569.978179 | AL111: 744.873831 | CG111: 2817.21
A112: 111 | H112: b | I112: לא צמוד | J112: 43913.41 | K112: 1.023530929 | L112: 402.6303286 | M112: 13046.36844 | N112: 444.5577026 | O112: 11434.79 | P112: 1262.176688 | Q112: 5079.44 | R112: 1652.25 | S112: 44.4193195 | T112: 0 | W112: 811.09 | X112: 0 | Y112: 72.58331229 | Z112: 1.780680501 | AC112: 602.5630399 | AD112: 313.6627644 | AE112: 2446.05577 | AF112: 1621.834091 | AG112: 1014.02399 | AH112: 11.55696009 | AI112: 42.64723563 | AJ112: 419.06423 | AK112: 873.2659095 | AL112: 440.7060096 | CG112: 1874.92
A113: 112 | H113: c | I113: צמוד מט"ח | J113: 0 | K113: 0 | L113: 0 | M113: 0 | N113: 0 | P113: 0 | S113: 0 | T113: 0 | X113: 0 | Y113: 0 | Z113: 0 | AC113: 0 | AD113: 0 | AE113: 0 | AF113: 0 | AG113: 0 | AH113: 0 | AI113: 0 | AJ113: 0 | AK113: 0 | AL113: 0 | CG113: 0
A114: 113 | H114: d | I114: אחר | J114: 0 | K114: 0 | L114: 0 | M114: 0 | N114: 0 | P114: 0 | S114: 0 | T114: 0 | X114: 0 | Y114: 0 | Z114: 0 | AC114: 0 | AD114: 0 | AE114: 0 | AF114: 0 | AG114: 0 | AH114: 0 | AI114: 0 | AJ114: 0 | AK114: 0 | AL114: 0 | CG114: 0
A115: 114 | F115: (2) | G115: לא סחיר | J115: 676389.94 | K115: =SUM(K116,K121,K126,K131) -> 20.45296499 | L115: =SUM(L116,L121,L126,L131) -> 8045.662112 | M115: 260702.3485 | N115: 8883.48644 | O115: 166893.12 | P115: 19028.31876 | Q115: 64762.25 | R115: 18197.84 | S115: 0 | T115: 0 | U115: 169.3 | V115: 0 | W115: 2597.5 | X115: 0 | Y115: 1094.251238 | Z115: 0 | AA115: 13.63 | AB115: 0 | AC115: 17341.45659 | AD115: 7685.543209 | AE115: 14837.09309 | AF115: 19721.27114 | AG115: 10201.93607 | AH115: 332.6034099 | AI115: 1044.966791 | AJ115: 2541.926912 | AK115: 10618.78886 | AL115: 4433.87393 | AM115: 0 | AN115: 0 | AO115: 0 | AP115: 0 | AQ115: 0 | AR115: 0 | AS115: 0 | AT115: 0 | AU115: 0 | AV115: 0 | AW115: 0 | AX115: 0 | AY115: 0 | AZ115: 0 | BA115: 0 | BB115: 0 | BC115: 0 | BD115: 0 | BE115: 0 | BF115: 0 | BG115: 0 | BH115: 0 | BI115: 0 | BJ115: 0 | BK115: 0 | BL115: 0 | BM115: 0 | BN115: 0 | BO115: 0 | BP115: 0 | BQ115: 0 | BR115: 0 | BS115: 0 | BT115: 0 | BU115: 0 | BV115: 0 | BW115: 0 | BX115: 0 | BY115: 0 | BZ115: 0 | CA115: 0 | CB115: 0 | CC115: 0 | CD115: 0 | CE115: 0 | CF115: 0 | CG115: 37222.32
A116: 115 | G116: (א) | H116: =$H$48 -> דרוג AA- ומעלה | J116: 635145.81 | K116: =SUM(K117:K120) -> 19.60375707 | L116: =SUM(L117:L120) -> 7711.605901 | M116: 249877.9766 | N116: 8514.643729 | O116: 156198.93 | P116: 18326.70603 | Q116: 60527.29 | R116: 16678.83 | S116: 0 | T116: 0 | U116: 169.3 | V116: 0 | W116: 2512.26 | X116: 0 | Y116: 1053.903974 | Z116: 0 | AA116: 13.63 | AB116: 0 | AC116: 15496.50221 | AD116: 6905.713015 | AE116: 13155.72855 | AF116: 17598.20965 | AG116: 9165.662146 | AH116: 297.2177942 | AI116: 938.9369846 | AJ116: 2253.871447 | AK116: 9475.640353 | AL116: 3983.497854 | AM116: 0 | AN116: 0 | AO116: 0 | AP116: 0 | AQ116: 0 | AR116: 0 | AS116: 0 | AT116: 0 | AU116: 0 | AV116: 0 | AW116: 0 | AX116: 0 | AY116: 0 | AZ116: 0 | BA116: 0 | BB116: 0 | BC116: 0 | BD116: 0 | BE116: 0 | BF116: 0 | BG116: 0 | BH116: 0 | BI116: 0 | BJ116: 0 | BK116: 0 | BL116: 0 | BM116: 0 | BN116: 0 | BO116: 0 | BP116: 0 | BQ116: 0 | BR116: 0 | BS116: 0 | BT116: 0 | BU116: 0 | BV116: 0 | BW116: 0 | BX116: 0 | BY116: 0 | BZ116: 0 | CA116: 0 | CB116: 0 | CC116: 0 | CD116: 0 | CE116: 0 | CF116: 0 | CG116: 34270.15
A117: 116 | H117: a | I117: צמוד מדד | J117: 543919.61 | K117: 17.95850162 | L117: 7064.40539 | M117: 228906.8383 | N117: 7800.047853 | O117: 131582.83 | P117: 17466.11554 | Q117: 50482.53 | R117: 13120.47 | S117: 0 | T117: 0 | W117: 1798.56 | X117: 0 | Y117: 1004.414462 | Z117: 0 | AC117: 10736.7232 | AD117: 4997.652885 | AE117: 9021.657647 | AF117: 13091.6546 | AG117: 6475.260412 | AH117: 205.9268048 | AI117: 679.5071153 | AJ117: 1545.612353 | AK117: 7049.115399 | AL117: 2814.219588 | CG117: 28058.11
A118: 117 | H118: b | I118: לא צמוד | J118: 80074.38 | K118: 1.375268628 | L118: 540.9947506 | M118: 17529.76946 | N118: 597.3305197 | O118: 21093.95 | P118: 614.9276861 | Q118: 9072.66 | R118: 3332.79 | S118: 0 | T118: 0 | W118: 679.55 | X118: 0 | Y118: 35.36231394 | Z118: 0 | AC118: 4382.073282 | AD118: 1785.424337 | AE118: 3895.998117 | AF118: 4228.442773 | AG118: 2467.525991 | AH118: 84.04671824 | AI118: 242.7556632 | AJ118: 667.4718831 | AK118: 2276.777227 | AL118: 1072.414009 | CG118: 5472.74
A119: 118 | H119: c | I119: צמוד מט"ח | J119: 11151.82 | K119: 0.2699868181 | L119: 106.2057611 | M119: 3441.368895 | N119: 117.2653568 | O119: 3522.15 | P119: 245.6628021 | Q119: 972.1 | R119: 225.57 | S119: 0 | T119: 0 | U119: 169.3 | W119: 34.15 | X119: 0 | Y119: 14.12719792 | Z119: 0 | AA119: 13.63 | AC119: 377.7057289 | AD119: 122.6357938 | AE119: 238.07279 | AF119: 278.1122736 | AG119: 222.8757437 | AH119: 7.244271132 | AI119: 16.67420616 | AJ119: 40.78721002 | AK119: 149.7477264 | AL119: 96.86425626 | CG119: 739.3
A120: 119 | H120: d | I120: אחר | J120: 0 | K120: 0 | L120: 0 | M120: 0 | N120: 0 | P120: 0 | S120: 0 | T120: 0 | X120: 0 | Y120: 0 | Z120: 0 | AC120: 0 | AD120: 0 | AE120: 0 | AF120: 0 | AG120: 0 | AH120: 0 | AI120: 0 | AJ120: 0 | AK120: 0 | AL120: 0 | CG120: 0
A121: 120 | G121: (ב) | H121: =$H$52 -> דרוג BBB- ועד A+ | J121: 28788.92 | K121: =SUM(K122:K125) -> 0.4803168115 | L121: =SUM(L122:L125) -> 188.9440858 | M121: 6122.32607 | N121: 208.619527 | O121: 7863.9 | P121: 268.6035603 | Q121: 2934.34 | R121: 1161.71 | S121: 0 | T121: 0 | U121: 0 | V121: 0 | W121: 37.6 | X121: 0 | Y121: 15.4464397 | Z121: 0 | AA121: 0 | AB121: 0 | AC121: 1541.48483 | AD121: 638.5758729 | AE121: 1426.370699 | AF121: 1753.025135 | AG121: 853.2487033 | AH121: 29.56516992 | AI121: 86.8241271 | AJ121: 244.369301 | AK121: 943.9048652 | AL121: 370.8312967 | AM121: 0 | AN121: 0 | AO121: 0 | AP121: 0 | AQ121: 0 | AR121: 0 | AS121: 0 | AT121: 0 | AU121: 0 | AV121: 0 | AW121: 0 | AX121: 0 | AY121: 0 | AZ121: 0 | BA121: 0 | BB121: 0 | BC121: 0 | BD121: 0 | BE121: 0 | BF121: 0 | BG121: 0 | BH121: 0 | BI121: 0 | BJ121: 0 | BK121: 0 | BL121: 0 | BM121: 0 | BN121: 0 | BO121: 0 | BP121: 0 | BQ121: 0 | BR121: 0 | BS121: 0 | BT121: 0 | BU121: 0 | BV121: 0 | BW121: 0 | BX121: 0 | BY121: 0 | BZ121: 0 | CA121: 0 | CB121: 0 | CC121: 0 | CD121: 0 | CE121: 0 | CF121: 0 | CG121: 2098.75
A122: 121 | H122: a | I122: צמוד מדד | J122: 0 | K122: 0 | L122: 0 | M122: 0 | N122: 0 | P122: 0 | S122: 0 | T122: 0 | X122: 0 | Y122: 0 | Z122: 0 | AC122: 0 | AD122: 0 | AE122: 0 | AF122: 0 | AG122: 0 | AH122: 0 | AI122: 0 | AJ122: 0 | AK122: 0 | AL122: 0 | CG122: 0
A123: 122 | H123: b | I123: לא צמוד | J123: 28788.92 | K123: 0.4803168115 | L123: 188.9440858 | M123: 6122.32607 | N123: 208.619527 | O123: 7863.9 | P123: 268.6035603 | Q123: 2934.34 | R123: 1161.71 | S123: 0 | T123: 0 | W123: 37.6 | X123: 0 | Y123: 15.4464397 | Z123: 0 | AC123: 1541.48483 | AD123: 638.5758729 | AE123: 1426.370699 | AF123: 1753.025135 | AG123: 853.2487033 | AH123: 29.56516992 | AI123: 86.8241271 | AJ123: 244.369301 | AK123: 943.9048652 | AL123: 370.8312967 | CG123: 2098.75
A124: 123 | H124: c | I124: צמוד מט"ח | J124: 0 | K124: 0 | L124: 0 | M124: 0 | N124: 0 | P124: 0 | S124: 0 | T124: 0 | X124: 0 | Y124: 0 | Z124: 0 | AC124: 0 | AD124: 0 | AE124: 0 | AF124: 0 | AG124: 0 | AH124: 0 | AI124: 0 | AJ124: 0 | AK124: 0 | AL124: 0 | CG124: 0
A125: 124 | H125: d | I125: אחר | J125: 0 | K125: 0 | L125: 0 | M125: 0 | N125: 0 | P125: 0 | S125: 0 | T125: 0 | X125: 0 | Y125: 0 | Z125: 0 | AC125: 0 | AD125: 0 | AE125: 0 | AF125: 0 | AG125: 0 | AH125: 0 | AI125: 0 | AJ125: 0 | AK125: 0 | AL125: 0 | CG125: 0
A126: 125 | G126: (ג) | H126: =$H$69 -> בדרוג נמוך מ- BBB- או לא מדורג עם בטוחה מספקת | J126: 0 | K126: =SUM(K127:K130) -> 0 | L126: =SUM(L127:L130) -> 0 | M126: 0 | N126: 0 | O126: 0 | P126: 0 | Q126: 0 | R126: 0 | S126: 0 | T126: 0 | U126: 0 | V126: 0 | W126: 0 | X126: 0 | Y126: 0 | Z126: 0 | AA126: 0 | AB126: 0 | AC126: 0 | AD126: 0 | AE126: 0 | AF126: 0 | AG126: 0 | AH126: 0 | AI126: 0 | AJ126: 0 | AK126: 0 | AL126: 0 | AM126: 0 | AN126: 0 | AO126: 0 | AP126: 0 | AQ126: 0 | AR126: 0 | AS126: 0 | AT126: 0 | AU126: 0 | AV126: 0 | AW126: 0 | AX126: 0 | AY126: 0 | AZ126: 0 | BA126: 0 | BB126: 0 | BC126: 0 | BD126: 0 | BE126: 0 | BF126: 0 | BG126: 0 | BH126: 0 | BI126: 0 | BJ126: 0 | BK126: 0 | BL126: 0 | BM126: 0 | BN126: 0 | BO126: 0 | BP126: 0 | BQ126: 0 | BR126: 0 | BS126: 0 | BT126: 0 | BU126: 0 | BV126: 0 | BW126: 0 | BX126: 0 | BY126: 0 | BZ126: 0 | CA126: 0 | CB126: 0 | CC126: 0 | CD126: 0 | CE126: 0 | CF126: 0 | CG126: 0
A127: 126 | H127: a | I127: צמוד מדד | J127: 0 | K127: 0 | L127: 0 | M127: 0 | N127: 0 | P127: 0 | S127: 0 | T127: 0 | X127: 0 | Y127: 0 | Z127: 0 | AC127: 0 | AD127: 0 | AE127: 0 | AF127: 0 | AG127: 0 | AH127: 0 | AI127: 0 | AJ127: 0 | AK127: 0 | AL127: 0 | CG127: 0
A128: 127 | H128: b | I128: לא צמוד | J128: 0 | K128: 0 | L128: 0 | M128: 0 | N128: 0 | P128: 0 | S128: 0 | T128: 0 | X128: 0 | Y128: 0 | Z128: 0 | AC128: 0 | AD128: 0 | AE128: 0 | AF128: 0 | AG128: 0 | AH128: 0 | AI128: 0 | AJ128: 0 | AK128: 0 | AL128: 0 | CG128: 0
A129: 128 | H129: c | I129: צמוד מט"ח | J129: 0 | K129: 0 | L129: 0 | M129: 0 | N129: 0 | P129: 0 | S129: 0 | T129: 0 | X129: 0 | Y129: 0 | Z129: 0 | AC129: 0 | AD129: 0 | AE129: 0 | AF129: 0 | AG129: 0 | AH129: 0 | AI129: 0 | AJ129: 0 | AK129: 0 | AL129: 0 | CG129: 0
A130: 129 | H130: d | I130: אחר | J130: 0 | K130: 0 | L130: 0 | M130: 0 | N130: 0 | P130: 0 | S130: 0 | T130: 0 | X130: 0 | Y130: 0 | Z130: 0 | AC130: 0 | AD130: 0 | AE130: 0 | AF130: 0 | AG130: 0 | AH130: 0 | AI130: 0 | AJ130: 0 | AK130: 0 | AL130: 0 | CG130: 0
A131: 130 | G131: (ד) | H131: =$H$56 -> דרוג נמוך מ- BBB- או לא מדורג | J131: 12455.21 | K131: =SUM(K132:K135) -> 0.3688911078 | L131: =SUM(L132:L135) -> 145.1121249 | M131: 4702.045801 | N131: 160.2231831 | O131: 2830.29 | P131: 433.0091755 | Q131: 1300.62 | R131: 357.3 | S131: 0 | T131: 0 | U131: 0 | V131: 0 | W131: 47.64 | X131: 0 | Y131: 24.90082452 | Z131: 0 | AA131: 0 | AB131: 0 | AC131: 303.4695542 | AD131: 141.2543212 | AE131: 254.9938353 | AF131: 370.0363557 | AG131: 183.0252206 | AH131: 5.82044582 | AI131: 19.20567885 | AJ131: 43.68616471 | AK131: 199.2436443 | AL131: 79.5447794 | AM131: 0 | AN131: 0 | AO131: 0 | AP131: 0 | AQ131: 0 | AR131: 0 | AS131: 0 | AT131: 0 | AU131: 0 | AV131: 0 | AW131: 0 | AX131: 0 | AY131: 0 | AZ131: 0 | BA131: 0 | BB131: 0 | BC131: 0 | BD131: 0 | BE131: 0 | BF131: 0 | BG131: 0 | BH131: 0 | BI131: 0 | BJ131: 0 | BK131: 0 | BL131: 0 | BM131: 0 | BN131: 0 | BO131: 0 | BP131: 0 | BQ131: 0 | BR131: 0 | BS131: 0 | BT131: 0 | BU131: 0 | BV131: 0 | BW131: 0 | BX131: 0 | BY131: 0 | BZ131: 0 | CA131: 0 | CB131: 0 | CC131: 0 | CD131: 0 | CE131: 0 | CF131: 0 | CG131: 853.42
A132: 131 | H132: a | I132: צמוד מדד | J132: 12455.21 | K132: 0.3688911078 | L132: 145.1121249 | M132: 4702.045801 | N132: 160.2231831 | O132: 2830.29 | P132: 433.0091755 | Q132: 1300.62 | R132: 357.3 | S132: 0 | T132: 0 | W132: 47.64 | X132: 0 | Y132: 24.90082452 | Z132: 0 | AC132: 303.4695542 | AD132: 141.2543212 | AE132: 254.9938353 | AF132: 370.0363557 | AG132: 183.0252206 | AH132: 5.82044582 | AI132: 19.20567885 | AJ132: 43.68616471 | AK132: 199.2436443 | AL132: 79.5447794 | CG132: 853.42
A133: 132 | H133: b | I133: לא צמוד | J133: 0 | K133: 0 | L133: 0 | M133: 0 | N133: 0 | P133: 0 | S133: 0 | T133: 0 | X133: 0 | Y133: 0 | Z133: 0 | AC133: 0 | AD133: 0 | AE133: 0 | AF133: 0 | AG133: 0 | AH133: 0 | AI133: 0 | AJ133: 0 | AK133: 0 | AL133: 0 | CG133: 0
A134: 133 | H134: c | I134: צמוד מט"ח | J134: 0 | K134: 0 | L134: 0 | M134: 0 | N134: 0 | P134: 0 | S134: 0 | T134: 0 | X134: 0 | Y134: 0 | Z134: 0 | AC134: 0 | AD134: 0 | AE134: 0 | AF134: 0 | AG134: 0 | AH134: 0 | AI134: 0 | AJ134: 0 | AK134: 0 | AL134: 0 | CG134: 0
A135: 134 | H135: d | I135: אחר | J135: 0 | K135: 0 | L135: 0 | M135: 0 | N135: 0 | P135: 0 | S135: 0 | T135: 0 | X135: 0 | Y135: 0 | Z135: 0 | AC135: 0 | AD135: 0 | AE135: 0 | AF135: 0 | AG135: 0 | AH135: 0 | AI135: 0 | AJ135: 0 | AK135: 0 | AL135: 0 | CG135: 0
A136: 135 | E136: ב) | F136: בחו"ל | J136: 2571567.3 | K136: =SUM(K137,K141,K146,K150) -> 54.72396141 | L136: =SUM(L137,L141,L146,L150) -> 21526.97681 | M136: 697535.3093 | N136: 23768.65992 | O136: 662283.04 | P136: 47979.29086 | Q136: 383529.97 | R136: 58207.61 | S136: 18.08500865 | T136: 0 | U136: 54353.8 | V136: 0 | W136: 16339.1 | X136: 0 | Y136: 2759.119136 | Z136: 0.724991347 | AA136: 6516.18 | AB136: 0 | AC136: 81990.01852 | AD136: 37912.36577 | AE136: 58563.26829 | AF136: 87354.20324 | AG136: 61804.19516 | AH136: 1572.541476 | AI136: 5154.764225 | AJ136: 10033.20171 | AK136: 47035.29676 | AL136: 26860.78484 | AM136: 0 | AN136: 0 | AO136: 0 | AP136: 0 | AQ136: 0 | AR136: 0 | AS136: 0 | AT136: 0 | AU136: 0 | AV136: 0 | AW136: 0 | AX136: 0 | AY136: 0 | AZ136: 0 | BA136: 0 | BB136: 0 | BC136: 0 | BD136: 0 | BE136: 0 | BF136: 0 | BG136: 0 | BH136: 0 | BI136: 0 | BJ136: 0 | BK136: 0 | BL136: 0 | BM136: 0 | BN136: 0 | BO136: 0 | BP136: 0 | BQ136: 0 | BR136: 0 | BS136: 0 | BT136: 0 | BU136: 0 | BV136: 0 | BW136: 0 | BX136: 0 | BY136: 0 | BZ136: 0 | CA136: 0 | CB136: 0 | CC136: 0 | CD136: 0 | CE136: 0 | CF136: 0 | CG136: 178414.07
A137: 136 | F137: (1) | G137: סחיר - חברות ישראליות | J137: 136707.98 | K137: =SUM(K138:K140) -> 3.14066276 | L137: =SUM(L138:L140) -> 1235.454683 | M137: 40032.24754 | N137: 1364.107114 | O137: 37342.07 | P137: 5565.516833 | Q137: 19279.68 | R137: 5246.93 | S137: 10.22028931 | T137: 0 | U137: 279.48 | V137: 0 | W137: 802.37 | X137: 0 | Y137: 320.0531671 | Z137: 0.4097106868 | AA137: 92.4 | AB137: 0 | AC137: 2264.291634 | AD137: 1076.538214 | AE137: 2637.335296 | AF137: 4305.468679 | AG137: 2122.645051 | AH137: 43.4283657 | AI137: 146.3717856 | AJ137: 451.8347041 | AK137: 2318.251321 | AL137: 922.5249491 | AM137: 0 | AN137: 0 | AO137: 0 | AP137: 0 | AQ137: 0 | AR137: 0 | AS137: 0 | AT137: 0 | AU137: 0 | AV137: 0 | AW137: 0 | AX137: 0 | AY137: 0 | AZ137: 0 | BA137: 0 | BB137: 0 | BC137: 0 | BD137: 0 | BE137: 0 | BF137: 0 | BG137: 0 | BH137: 0 | BI137: 0 | BJ137: 0 | BK137: 0 | BL137: 0 | BM137: 0 | BN137: 0 | BO137: 0 | BP137: 0 | BQ137: 0 | BR137: 0 | BS137: 0 | BT137: 0 | BU137: 0 | BV137: 0 | BW137: 0 | BX137: 0 | BY137: 0 | BZ137: 0 | CA137: 0 | CB137: 0 | CC137: 0 | CD137: 0 | CE137: 0 | CF137: 0 | CG137: 8845.21
A138: 137 | G138: (א) | H138: =$H$79 -> דרוג A- ומעלה | J138: 48801.82 | K138: 0.9831173619 | L138: 386.7326872 | M138: 12531.23961 | N138: 427.0045814 | O138: 13099.97 | P138: 1703.27092 | Q138: 8022.06 | R138: 2179.19 | S138: 4.913045945 | T138: 0 | W138: 283.24 | X138: 0 | Y138: 97.94907981 | Z138: 0.1969540555 | AC138: 1034.881318 | AD138: 496.0274981 | AE138: 1184.951264 | AF138: 2020.555284 | AG138: 1013.473318 | AH138: 19.84868188 | AI138: 67.44250193 | AJ138: 203.0087357 | AK138: 1087.954716 | AL138: 440.4666815 | CG138: 2496.46
A139: 138 | G139: (ב) | H139: =$H$80 -> דרוג BBB- ועד BBB+ | J139: 35205.45 | K139: 1.095884488 | L139: 431.0923286 | M139: 13968.61823 | N139: 475.9835551 | O139: 10095.55 | P139: 2022.900174 | Q139: 2594.66 | R139: 714.45 | S139: 0 | T139: 0 | U139: 279.48 | W139: 213.26 | X139: 0 | Y139: 116.3298265 | Z139: 0 | AA139: 92.4 | AC139: 111.8546645 | AD139: 44.85172419 | AE139: 172.7619945 | AF139: 102.9287116 | AG139: 14.72873105 | AH139: 2.145335522 | AI139: 6.098275814 | AJ139: 29.59800552 | AK139: 55.42128843 | AL139: 6.401268952 | CG139: 3652.84
A140: =A139+1 -> 139 | G140: (ג) | H140: =$H$81 -> דרוג נמוך מ- BBB- או לא מדורג | J140: =SUM(K140:CG140) -> 52700.71 | K140: 1.06166091 | L140: 417.6296673 | M140: 13532.38969 | N140: 461.1189774 | O140: 14146.55 | P140: 1839.345739 | Q140: 8662.96 | R140: 2353.29 | S140: 5.307243369 | T140: 0 | W140: 305.87 | X140: 0 | Y140: 105.7742608 | Z140: 0.2127566313 | AC140: 1117.555652 | AD140: 535.6589921 | AE140: 1279.622037 | AF140: 2181.984684 | AG140: 1094.443001 | AH140: 21.4343483 | AI140: 72.83100786 | AJ140: 219.2279629 | AK140: 1174.875316 | AL140: 475.6569987 | CG140: 2695.91
A141: 140 | F141: (2) | G141: לא סחיר - חברות ישראליות | J141: 0 | K141: =SUM(K142:K145) -> 0 | L141: =SUM(L142:L145) -> 0 | M141: 0 | N141: 0 | O141: 0 | P141: 0 | Q141: 0 | R141: 0 | S141: 0 | T141: 0 | U141: 0 | V141: 0 | W141: 0 | X141: 0 | Y141: 0 | Z141: 0 | AA141: 0 | AB141: 0 | AC141: 0 | AD141: 0 | AE141: 0 | AF141: 0 | AG141: 0 | AH141: 0 | AI141: 0 | AJ141: 0 | AK141: 0 | AL141: 0 | AM141: 0 | AN141: 0 | AO141: 0 | AP141: 0 | AQ141: 0 | AR141: 0 | AS141: 0 | AT141: 0 | AU141: 0 | AV141: 0 | AW141: 0 | AX141: 0 | AY141: 0 | AZ141: 0 | BA141: 0 | BB141: 0 | BC141: 0 | BD141: 0 | BE141: 0 | BF141: 0 | BG141: 0 | BH141: 0 | BI141: 0 | BJ141: 0 | BK141: 0 | BL141: 0 | BM141: 0 | BN141: 0 | BO141: 0 | BP141: 0 | BQ141: 0 | BR141: 0 | BS141: 0 | BT141: 0 | BU141: 0 | BV141: 0 | BW141: 0 | BX141: 0 | BY141: 0 | BZ141: 0 | CA141: 0 | CB141: 0 | CC141: 0 | CD141: 0 | CE141: 0 | CF141: 0 | CG141: 0
A142: 141 | G142: (א) | H142: =$H$79 -> דרוג A- ומעלה | J142: 0 | K142: 0 | L142: 0 | M142: 0 | N142: 0 | P142: 0 | S142: 0 | T142: 0 | X142: 0 | Y142: 0 | Z142: 0 | AC142: 0 | AD142: 0 | AE142: 0 | AF142: 0 | AG142: 0 | AH142: 0 | AI142: 0 | AJ142: 0 | AK142: 0 | AL142: 0 | CG142: 0
A143: 142 | G143: (ב) | H143: =$H$80 -> דרוג BBB- ועד BBB+ | J143: 0 | K143: 0 | L143: 0 | M143: 0 | N143: 0 | P143: 0 | S143: 0 | T143: 0 | X143: 0 | Y143: 0 | Z143: 0 | AC143: 0 | AD143: 0 | AE143: 0 | AF143: 0 | AG143: 0 | AH143: 0 | AI143: 0 | AJ143: 0 | AK143: 0 | AL143: 0 | CG143: 0
A144: 143 | G144: (ג) | H144: =$H$69 -> בדרוג נמוך מ- BBB- או לא מדורג עם בטוחה מספקת | J144: 0 | K144: 0 | L144: 0 | M144: 0 | N144: 0 | P144: 0 | S144: 0 | T144: 0 | X144: 0 | Y144: 0 | Z144: 0 | AC144: 0 | AD144: 0 | AE144: 0 | AF144: 0 | AG144: 0 | AH144: 0 | AI144: 0 | AJ144: 0 | AK144: 0 | AL144: 0 | CG144: 0
A145: 144 | G145: (ד) | H145: =H140 -> דרוג נמוך מ- BBB- או לא מדורג | J145: 0 | K145: 0 | L145: 0 | M145: 0 | N145: 0 | P145: 0 | S145: 0 | T145: 0 | X145: 0 | Y145: 0 | Z145: 0 | AC145: 0 | AD145: 0 | AE145: 0 | AF145: 0 | AG145: 0 | AH145: 0 | AI145: 0 | AJ145: 0 | AK145: 0 | AL145: 0 | CG145: 0
A146: 145 | F146: (3) | G146: סחיר - חברות זרות | J146: 2354938.96 | K146: =SUM(K147:K149) -> 49.64841756 | L146: =SUM(L147:L149) -> 19530.39045 | M146: 632840.2294 | N146: 21564.16169 | O146: 599699.24 | P146: 40653.21741 | Q146: 357283.66 | R146: 51344.1 | S146: 7.86471934 | T146: 0 | U146: 52860.99 | V146: 0 | W146: 15291.98 | X146: 0 | Y146: 2337.822591 | Z146: 0.3152806602 | AA146: 6326.1 | AB146: 0 | AC146: 77018.8342 | AD146: 35956.96265 | AE146: 54219.78451 | AF146: 81055.6096 | AG146: 58084.31577 | AH146: 1477.195802 | AI146: 4888.897353 | AJ146: 9289.065493 | AK146: 43643.8604 | AL146: 25244.08423 | AM146: 0 | AN146: 0 | AO146: 0 | AP146: 0 | AQ146: 0 | AR146: 0 | AS146: 0 | AT146: 0 | AU146: 0 | AV146: 0 | AW146: 0 | AX146: 0 | AY146: 0 | AZ146: 0 | BA146: 0 | BB146: 0 | BC146: 0 | BD146: 0 | BE146: 0 | BF146: 0 | BG146: 0 | BH146: 0 | BI146: 0 | BJ146: 0 | BK146: 0 | BL146: 0 | BM146: 0 | BN146: 0 | BO146: 0 | BP146: 0 | BQ146: 0 | BR146: 0 | BS146: 0 | BT146: 0 | BU146: 0 | BV146: 0 | BW146: 0 | BX146: 0 | BY146: 0 | BZ146: 0 | CA146: 0 | CB146: 0 | CC146: 0 | CD146: 0 | CE146: 0 | CF146: 0 | CG146: 164270.63
A147: 146 | G147: (א) | H147: =$H$79 -> דרוג A- ומעלה | J147: 177403.82 | K147: 3.739491019 | L147: 1471.018076 | M147: 47665.17184 | N147: 1624.200588 | O147: 45175.37 | P147: 3063.139683 | Q147: 26918.79 | R147: 3868.21 | S147: 0 | T147: 0 | U147: 3982.85 | W147: 1152.22 | X147: 0 | Y147: 176.1503174 | Z147: 0 | AA147: 476.66 | AC147: 5803.157359 | AD147: 2709.273021 | AE147: 4085.288438 | AF147: 6107.335389 | AG147: 4376.545192 | AH147: 111.3026415 | AI147: 368.3669789 | AJ147: 699.9015618 | AK147: 3288.454611 | AL147: 1902.094808 | CG147: 12374.58
A148: 147 | G148: (ב) | H148: =$H$80 -> דרוג BBB- ועד BBB+ | J148: 1741139.48 | K148: 36.70143764 | L148: 14437.38678 | M148: 467812.4169 | N148: 15940.80485 | O148: 443376.11 | P148: 30063.38138 | Q148: 264195.99 | R148: 37964.73 | S148: 0 | T148: 0 | U148: 39089.92 | W148: 11308.54 | X148: 0 | Y148: 1728.838617 | Z148: 0 | AA148: 4678.2 | AC148: 56955.45322 | AD148: 26590.28526 | AE148: 40095.27915 | AF148: 59940.74806 | AG148: 42953.81728 | AH148: 1092.386782 | AI148: 3615.354737 | AJ148: 6869.220846 | AK148: 32274.70194 | AL148: 18668.20272 | CG148: 121451.01
A149: 148 | G149: (ג) | H149: =$H$81 -> דרוג נמוך מ- BBB- או לא מדורג | J149: 436395.66 | K149: 9.207488902 | L149: 3621.985597 | M149: 117362.6407 | N149: 3999.156252 | O149: 111147.76 | P149: 7526.696343 | Q149: 66168.88 | R149: 9511.16 | S149: 7.86471934 | T149: 0 | U149: 9788.22 | W149: 2831.22 | X149: 0 | Y149: 432.8336567 | Z149: 0.3152806602 | AA149: 1171.24 | AC149: 14260.22362 | AD149: 6657.404363 | AE149: 10039.21692 | AF149: 15007.52615 | AG149: 10753.9533 | AH149: 273.5063792 | AI149: 905.1756371 | AJ149: 1719.943085 | AK149: 8080.703847 | AL149: 4673.786704 | CG149: 30445.04
A150: 149 | F150: (4) | G150: לא סחיר - חברות זרות | J150: 79920.36 | K150: =SUM(K151:K154) -> 1.934881097 | L150: =SUM(L151:L154) -> 761.1316768 | M150: 24662.83233 | N150: 840.3911121 | O150: 25241.73 | P150: 1760.556622 | Q150: 6966.63 | R150: 1616.58 | S150: 0 | T150: 0 | U150: 1213.33 | V150: 0 | W150: 244.75 | X150: 0 | Y150: 101.2433777 | Z150: 0 | AA150: 97.68 | AB150: 0 | AC150: 2706.892692 | AD150: 878.8649138 | AE150: 1706.148487 | AF150: 1993.124961 | AG150: 1597.23434 | AH150: 51.91730781 | AI150: 119.4950862 | AJ150: 292.3015129 | AK150: 1073.185039 | AL150: 694.1756597 | AM150: 0 | AN150: 0 | AO150: 0 | AP150: 0 | AQ150: 0 | AR150: 0 | AS150: 0 | AT150: 0 | AU150: 0 | AV150: 0 | AW150: 0 | AX150: 0 | AY150: 0 | AZ150: 0 | BA150: 0 | BB150: 0 | BC150: 0 | BD150: 0 | BE150: 0 | BF150: 0 | BG150: 0 | BH150: 0 | BI150: 0 | BJ150: 0 | BK150: 0 | BL150: 0 | BM150: 0 | BN150: 0 | BO150: 0 | BP150: 0 | BQ150: 0 | BR150: 0 | BS150: 0 | BT150: 0 | BU150: 0 | BV150: 0 | BW150: 0 | BX150: 0 | BY150: 0 | BZ150: 0 | CA150: 0 | CB150: 0 | CC150: 0 | CD150: 0 | CE150: 0 | CF150: 0 | CG150: 5298.23
A151: 150 | G151: (א) | H151: =$H$79 -> דרוג A- ומעלה | J151: 0 | K151: 0 | L151: 0 | M151: 0 | N151: 0 | P151: 0 | S151: 0 | T151: 0 | X151: 0 | Y151: 0 | Z151: 0 | AC151: 0 | AD151: 0 | AE151: 0 | AF151: 0 | AG151: 0 | AH151: 0 | AI151: 0 | AJ151: 0 | AK151: 0 | AL151: 0 | CG151: 0
A152: 151 | G152: (ב) | H152: =$H$80 -> דרוג BBB- ועד BBB+ | J152: 0 | K152: 0 | L152: 0 | M152: 0 | N152: 0 | P152: 0 | S152: 0 | T152: 0 | X152: 0 | Y152: 0 | Z152: 0 | AC152: 0 | AD152: 0 | AE152: 0 | AF152: 0 | AG152: 0 | AH152: 0 | AI152: 0 | AJ152: 0 | AK152: 0 | AL152: 0 | CG152: 0
A153: 152 | G153: (ג) | H153: =$H$69 -> בדרוג נמוך מ- BBB- או לא מדורג עם בטוחה מספקת | J153: 0 | K153: 0 | L153: 0 | M153: 0 | N153: 0 | P153: 0 | S153: 0 | T153: 0 | X153: 0 | Y153: 0 | Z153: 0 | AC153: 0 | AD153: 0 | AE153: 0 | AF153: 0 | AG153: 0 | AH153: 0 | AI153: 0 | AJ153: 0 | AK153: 0 | AL153: 0 | CG153: 0
A154: 153 | G154: (ד) | H154: =H149 -> דרוג נמוך מ- BBB- או לא מדורג | J154: 79920.36 | K154: 1.934881097 | L154: 761.1316768 | M154: 24662.83233 | N154: 840.3911121 | O154: 25241.73 | P154: 1760.556622 | Q154: 6966.63 | R154: 1616.58 | S154: 0 | T154: 0 | U154: 1213.33 | W154: 244.75 | X154: 0 | Y154: 101.2433777 | Z154: 0 | AA154: 97.68 | AC154: 2706.892692 | AD154: 878.8649138 | AE154: 1706.148487 | AF154: 1993.124961 | AG154: 1597.23434 | AH154: 51.91730781 | AI154: 119.4950862 | AJ154: 292.3015129 | AK154: 1073.185039 | AL154: 694.1756597 | CG154: 5298.23
A155: 154 | AC155: 0 | AD155: 0 | AE155: 0 | AF155: 0 | AG155: 0 | AH155: 0 | AI155: 0 | AJ155: 0 | AK155: 0 | AL155: 0 | CG155: 0
A156: 155 | D156: 4) | E156: מניות (למעט חברות מוחזקות) | J156: 15777415.61 | K156: =SUM(K157,K167) -> 417.7414808 | L156: =SUM(L157,L167) -> 164328.5855 | M156: 5324713.809 | N156: 181440.7242 | O156: 5115841.19 | P156: 80089.05218 | Q156: 584365.93 | R156: 98200.58 | S156: 1111530.139 | T156: 0 | U156: 32894.41 | V156: 0 | W156: 1837.3 | X156: 0 | Y156: 4605.637818 | Z156: 44558.99073 | AA156: 973.04 | AB156: 0 | AC156: 599356.9026 | AD156: 196318.7521 | AE156: 171999.7535 | AF156: 398986.6694 | AG156: 83084.54181 | AH156: 11495.46744 | AI156: 26692.52787 | AJ156: 29467.41654 | AK156: 214831.7506 | AL156: 36109.45819 | AM156: 160813.99 | AN156: 0 | AO156: 0 | AP156: 0 | AQ156: 0 | AR156: 0 | AS156: 0 | AT156: 0 | AU156: 0 | AV156: 0 | AW156: 0 | AX156: 0 | AY156: 0 | AZ156: 0 | BA156: 0 | BB156: 0 | BC156: 0 | BD156: 0 | BE156: 0 | BF156: 0 | BG156: 0 | BH156: 0 | BI156: 0 | BJ156: 0 | BK156: 0 | BL156: 0 | BM156: 0 | BN156: 0 | BO156: 0 | BP156: 0 | BQ156: 0 | BR156: 0 | BS156: 0 | BT156: 0 | BU156: 0 | BV156: 0 | BW156: 0 | BX156: 0 | BY156: 0 | BZ156: 0 | CA156: 0 | CB156: 0 | CC156: 0 | CD156: 0 | CE156: 0 | CF156: 0 | CG156: 1102461.25
A157: 156 | E157: א) | F157: בישראל | J157: 10058889.73 | K157: =SUM(K158,K166) -> 278.3409982 | L157: =SUM(L158,L166) -> 109492.0773 | M157: 3547854.893 | N157: 120893.8892 | O157: 3125817.08 | P157: 922.6042938 | Q157: 236606.88 | R157: 26545.02 | S157: 837045.5406 | T157: 0 | U157: 2196.79 | V157: 0 | W157: 1109.54 | X157: 0 | Y157: 53.05570625 | Z157: 33555.45942 | AA157: 0 | AB157: 0 | AC157: 403983.912 | AD157: 130399.1387 | AE157: 108422.5797 | AF157: 277969.909 | AG157: 50175.37755 | AH157: 7748.278005 | AI157: 17729.75127 | AJ157: 18575.22033 | AK157: 149671.071 | AL157: 21806.77245 | AM157: 115024.94 | AN157: 0 | AO157: 0 | AP157: 0 | AQ157: 0 | AR157: 0 | AS157: 0 | AT157: 0 | AU157: 0 | AV157: 0 | AW157: 0 | AX157: 0 | AY157: 0 | AZ157: 0 | BA157: 0 | BB157: 0 | BC157: 0 | BD157: 0 | BE157: 0 | BF157: 0 | BG157: 0 | BH157: 0 | BI157: 0 | BJ157: 0 | BK157: 0 | BL157: 0 | BM157: 0 | BN157: 0 | BO157: 0 | BP157: 0 | BQ157: 0 | BR157: 0 | BS157: 0 | BT157: 0 | BU157: 0 | BV157: 0 | BW157: 0 | BX157: 0 | BY157: 0 | BZ157: 0 | CA157: 0 | CB157: 0 | CC157: 0 | CD157: 0 | CE157: 0 | CF157: 0 | CG157: 715011.61
A158: 157 | F158: (1) | G158: סחיר | J158: 9433759.24 | K158: =SUM(K159,K163,K164,K165) -> 255.0133993 | L158: =SUM(L159,L163,L164,L165) -> 100315.6093 | M158: 3250511.215 | N158: 110761.8419 | O158: 2992673.51 | P158: 4.321486606 | Q158: 208389.18 | R158: 19565.22 | S158: 825247.4424 | T158: 0 | U158: 0 | V158: 0 | W158: 1109.54 | X158: 0 | Y158: 0.2485133935 | Z158: 33082.49758 | AA158: 0 | AB158: 0 | AC158: 383110.0262 | AD158: 121446.761 | AE158: 96471.47246 | AF158: 270437.8673 | AG158: 45917.47776 | AH158: 7347.92377 | AI158: 16512.53901 | AJ158: 16527.72754 | AK158: 145615.4927 | AL158: 19956.24224 | AM158: 94415.52 | AN158: 0 | AO158: 0 | AP158: 0 | AQ158: 0 | AR158: 0 | AS158: 0 | AT158: 0 | AU158: 0 | AV158: 0 | AW158: 0 | AX158: 0 | AY158: 0 | AZ158: 0 | BA158: 0 | BB158: 0 | BC158: 0 | BD158: 0 | BE158: 0 | BF158: 0 | BG158: 0 | BH158: 0 | BI158: 0 | BJ158: 0 | BK158: 0 | BL158: 0 | BM158: 0 | BN158: 0 | BO158: 0 | BP158: 0 | BQ158: 0 | BR158: 0 | BS158: 0 | BT158: 0 | BU158: 0 | BV158: 0 | BW158: 0 | BX158: 0 | BY158: 0 | BZ158: 0 | CA158: 0 | CB158: 0 | CC158: 0 | CD158: 0 | CE158: 0 | CF158: 0 | CG158: 674084.55
A159: 158 | G159: (א) | H159: ='[1]טופס 106 חודשי'!H158 -> ת"א 35 | J159: 5886138.83 | K159: =SUM(K160:K162) -> 157.8565716 | L159: =SUM(L160:L162) -> 62096.65142 | M159: 2012108.218 | N159: 68563.00366 | O159: 1880239.19 | P159: 0 | Q159: 122763.51 | R159: 9179.7 | S159: 521725.2904 | T159: 0 | U159: 0 | V159: 0 | W159: 522.36 | X159: 0 | Y159: 0 | Z159: 20914.9096 | AA159: 0 | AB159: 0 | AC159: 242203.9483 | AD159: 76779.21497 | AE159: 60989.72228 | AF159: 170972.091 | AG159: 29029.24846 | AH159: 4645.391733 | AI159: 10439.30503 | AJ159: 10448.90772 | AK159: 92058.799 | AL159: 12616.43154 | AM159: 59689.94 | AN159: 0 | AO159: 0 | AP159: 0 | AQ159: 0 | AR159: 0 | AS159: 0 | AT159: 0 | AU159: 0 | AV159: 0 | AW159: 0 | AX159: 0 | AY159: 0 | AZ159: 0 | BA159: 0 | BB159: 0 | BC159: 0 | BD159: 0 | BE159: 0 | BF159: 0 | BG159: 0 | BH159: 0 | BI159: 0 | BJ159: 0 | BK159: 0 | BL159: 0 | BM159: 0 | BN159: 0 | BO159: 0 | BP159: 0 | BQ159: 0 | BR159: 0 | BS159: 0 | BT159: 0 | BU159: 0 | BV159: 0 | BW159: 0 | BX159: 0 | BY159: 0 | BZ159: 0 | CA159: 0 | CB159: 0 | CC159: 0 | CD159: 0 | CE159: 0 | CF159: 0 | CG159: 417995.14
A160: 159 | H160: a | I160: מניות | J160: 5886138.83 | K160: 157.8565716 | L160: 62096.65142 | M160: 2012108.218 | N160: 68563.00366 | O160: 1880239.19 | P160: 0 | Q160: 122763.51 | R160: 9179.7 | S160: 521725.2904 | T160: 0 | W160: 522.36 | X160: 0 | Y160: 0 | Z160: 20914.9096 | AC160: 242203.9483 | AD160: 76779.21497 | AE160: 60989.72228 | AF160: 170972.091 | AG160: 29029.24846 | AH160: 4645.391733 | AI160: 10439.30503 | AJ160: 10448.90772 | AK160: 92058.799 | AL160: 12616.43154 | AM160: 59689.94 | CG160: 417995.14
A161: 160 | H161: b | I161: אופציה 001 Call ח (Long) | J161: 0 | K161: 0 | L161: 0 | M161: 0 | N161: 0 | P161: 0 | S161: 0 | T161: 0 | X161: 0 | Y161: 0 | Z161: 0 | AC161: 0 | AD161: 0 | AE161: 0 | AF161: 0 | AG161: 0 | AH161: 0 | AI161: 0 | AJ161: 0 | AK161: 0 | AL161: 0 | CG161: 0
A162: 161 | H162: c | I162: אופציה 001 Call ח (Short) | J162: 0 | K162: 0 | L162: 0 | M162: 0 | N162: 0 | P162: 0 | S162: 0 | T162: 0 | X162: 0 | Y162: 0 | Z162: 0 | AC162: 0 | AD162: 0 | AE162: 0 | AF162: 0 | AG162: 0 | AH162: 0 | AI162: 0 | AJ162: 0 | AK162: 0 | AL162: 0 | CG162: 0
A163: 162 | G163: (ב) | H163: ='[1]טופס 106 חודשי'!H162 -> ת"א 90 | J163: 2564513.14 | K163: 69.75742524 | L163: 27440.74874 | M163: 889158.3492 | N163: 30298.25463 | O163: 806572.84 | P163: 0 | Q163: 65655.54 | R163: 8892.24 | S163: 218652.2735 | T163: 0 | W163: 505.2 | X163: 0 | Y163: 0 | Z163: 8765.326537 | AC163: 101506.3811 | AD163: 32177.75373 | AE163: 25560.45979 | AF163: 71653.47643 | AG163: 12165.99458 | AH163: 1946.858865 | AI163: 4375.056274 | AJ163: 4379.080205 | AK163: 38581.34357 | AL163: 5287.47542 | AM163: 25015.73 | CG163: 185853
A164: 163 | G164: (ג) | H164: מניות היתר | J164: 715358.59 | K164: 20.21892254 | L164: 7953.595927 | M164: 257719.1421 | N164: 8781.833065 | O164: 220334.36 | P164: 0 | Q164: 14385.94 | R164: 1075.72 | S164: 61137.97258 | T164: 0 | W164: 59.06 | X164: 0 | Y164: 0 | Z164: 2450.897422 | AC164: 28382.47353 | AD164: 8997.30869 | AE164: 7147.032919 | AF164: 20035.23133 | AG164: 3401.772259 | AH164: 544.3664682 | AI164: 1223.32131 | AJ164: 1224.447081 | AK164: 10787.83867 | AL164: 1478.447741 | AM164: 6994.71 | CG164: 51222.9
A165: 164 | G165: (ד) | H165: מניות זרות הנסחרות בארץ | J165: 267748.68 | K165: 7.18047987 | L165: 2824.613198 | M165: 91525.50578 | N165: 3118.750538 | O165: 85527.12 | P165: 4.321486606 | Q165: 5584.19 | R165: 417.56 | S165: 23731.90598 | T165: 0 | W165: 22.92 | X165: 0 | Y165: 0.2485133935 | Z165: 951.3640173 | AC165: 11017.2233 | AD165: 3492.4836 | AE165: 2774.257458 | AF165: 7777.068543 | AG165: 1320.462454 | AH165: 211.3067041 | AI165: 474.8563998 | AJ165: 475.2925423 | AK165: 4187.511457 | AL165: 573.8875456 | AM165: 2715.14 | CG165: 19013.51
A166: 165 | F166: (2) | G166: לא סחיר | J166: 625130.49 | K166: 23.3275989 | L166: 9176.467996 | M166: 297343.6771 | N166: 10132.04729 | O166: 133143.57 | P166: 918.2828071 | Q166: 28217.7 | R166: 6979.8 | S166: 11798.09815 | T166: 0 | U166: 2196.79 | W166: 0 | X166: 0 | Y166: 52.80719285 | Z166: 472.9618458 | AC166: 20873.88577 | AD166: 8952.377738 | AE166: 11951.10721 | AF166: 7532.041659 | AG166: 4257.899792 | AH166: 400.3542348 | AI166: 1217.212262 | AJ166: 2047.492786 | AK166: 4055.578341 | AL166: 1850.530208 | AM166: 20609.42 | CG166: 40927.06
A167: 166 | E167: ב) | F167: בחו"ל | J167: 5718525.88 | K167: =SUM(K168,K172) -> 139.4004826 | L167: =SUM(L168,L172) -> 54836.50817 | M167: 1776858.916 | N167: 60546.83504 | O167: 1990024.11 | P167: 79166.44789 | Q167: 347759.05 | R167: 71655.56 | S167: 274484.5987 | T167: 0 | U167: 30697.62 | V167: 0 | W167: 727.76 | X167: 0 | Y167: 4552.582112 | Z167: 11003.53131 | AA167: 973.04 | AB167: 0 | AC167: 195372.9906 | AD167: 65919.6134 | AE167: 63577.17379 | AF167: 121016.7605 | AG167: 32909.16427 | AH167: 3747.189432 | AI167: 8962.776602 | AJ167: 10892.19621 | AK167: 65160.67952 | AL167: 14302.68573 | AM167: 45789.05 | AN167: 0 | AO167: 0 | AP167: 0 | AQ167: 0 | AR167: 0 | AS167: 0 | AT167: 0 | AU167: 0 | AV167: 0 | AW167: 0 | AX167: 0 | AY167: 0 | AZ167: 0 | BA167: 0 | BB167: 0 | BC167: 0 | BD167: 0 | BE167: 0 | BF167: 0 | BG167: 0 | BH167: 0 | BI167: 0 | BJ167: 0 | BK167: 0 | BL167: 0 | BM167: 0 | BN167: 0 | BO167: 0 | BP167: 0 | BQ167: 0 | BR167: 0 | BS167: 0 | BT167: 0 | BU167: 0 | BV167: 0 | BW167: 0 | BX167: 0 | BY167: 0 | BZ167: 0 | CA167: 0 | CB167: 0 | CC167: 0 | CD167: 0 | CE167: 0 | CF167: 0 | CG167: 387449.64
A168: 167 | F168: (1) | G168: סחיר | J168: 3192645.34 | K168: =SUM(K169:K171) -> 82.83711462 | L168: =SUM(L169:L171) -> 32585.95685 | M168: 1055877.734 | N168: 35979.25214 | O168: 1041637.8 | P168: 0 | Q168: 86979.85 | R168: 7496.34 | S168: 271962.7832 | T168: 0 | U168: 11028.05 | V168: 0 | W168: 342.98 | X168: 0 | Y168: 0 | Z168: 10902.43684 | AA168: 2.76 | AB168: 0 | AC168: 133221.8293 | AD168: 42505.41121 | AE168: 35156.50241 | AF168: 91200.34401 | AG168: 16613.79951 | AH168: 2555.150686 | AI168: 5779.258788 | AJ168: 6023.09759 | AK168: 49106.22599 | AL168: 7220.540494 | AM168: 28915.56 | AN168: 0 | AO168: 0 | AP168: 0 | AQ168: 0 | AR168: 0 | AS168: 0 | AT168: 0 | AU168: 0 | AV168: 0 | AW168: 0 | AX168: 0 | AY168: 0 | AZ168: 0 | BA168: 0 | BB168: 0 | BC168: 0 | BD168: 0 | BE168: 0 | BF168: 0 | BG168: 0 | BH168: 0 | BI168: 0 | BJ168: 0 | BK168: 0 | BL168: 0 | BM168: 0 | BN168: 0 | BO168: 0 | BP168: 0 | BQ168: 0 | BR168: 0 | BS168: 0 | BT168: 0 | BU168: 0 | BV168: 0 | BW168: 0 | BX168: 0 | BY168: 0 | BZ168: 0 | CA168: 0 | CB168: 0 | CC168: 0 | CD168: 0 | CE168: 0 | CF168: 0 | CG168: 219468.84
A169: 168 | G169: (א) | H169: חברות ישראליות | J169: 1084103 | K169: 29.07395331 | L169: 11436.9337 | M169: 370589.1988 | N169: 12627.90359 | O169: 346301.62 | P169: 0 | Q169: 22610.54 | R169: 1690.71 | S169: 96091.13128 | T169: 0 | W169: 92.81 | X169: 0 | Y169: 0 | Z169: 3852.098721 | AC169: 44609.00404 | AD169: 14141.15443 | AE169: 11233.05557 | AF169: 31489.55566 | AG169: 5346.592105 | AH169: 855.585964 | AI169: 1922.705573 | AJ169: 1924.47443 | AK169: 16955.34434 | AL169: 2323.687895 | AM169: 10993.67 | CG169: 76986.15
A170: 169 | G170: (ב) | H170: חברות זרות החזקה מתחת ל-10% | J170: 2096533.98 | K170: 53.6734967 | L170: 21113.75143 | M170: 684145.6312 | N170: 23312.40387 | O170: 688910.68 | P170: 0 | Q170: 62894.2 | R170: 5393.75 | S170: 175813.2626 | T170: 0 | U170: 10951.24 | W170: 250.11 | X170: 0 | Y170: 0 | Z170: 7047.997406 | AA170: 2.76 | AC170: 88025.12713 | AD170: 28172.80727 | AE170: 23707.57118 | AF170: 59622.80332 | AG170: 11168.70683 | AH170: 1688.292866 | AI170: 3830.522734 | AJ170: 4061.638817 | AK170: 32103.50668 | AL170: 4854.043166 | AM170: 17915.21 | CG170: 141494.29
A171: 170 | G171: (ג) | H171: חברות זרות החזקה של 10% ומעלה | J171: 12008.36 | K171: 0.08966460892 | L171: 35.27171475 | M171: 1142.903933 | N171: 38.94468787 | O171: 6425.5 | P171: 0 | Q171: 1475.11 | R171: 411.88 | S171: 58.38929163 | T171: 0 | U171: 76.81 | W171: 0.06 | X171: 0 | Y171: 0 | Z171: 2.340708373 | AC171: 587.6981437 | AD171: 191.4495187 | AE171: 215.8756569 | AF171: 87.98503567 | AG171: 98.50056717 | AH171: 11.27185629 | AI171: 26.03048134 | AJ171: 36.98434314 | AK171: 47.37496433 | AL171: 42.80943283 | AM171: 6.68 | CG171: 988.4
A172: 171 | F172: (2) | G172: לא סחיר | J172: 2525880.54 | K172: =SUM(K173:K174) -> 56.56336802 | L172: =SUM(L173:L174) -> 22250.55132 | M172: 720981.1824 | N172: 24567.58289 | O172: 948386.31 | P172: 79166.44789 | Q172: 260779.2 | R172: 64159.22 | S172: 2521.815526 | T172: 0 | U172: 19669.57 | V172: 0 | W172: 384.78 | X172: 0 | Y172: 4552.582112 | Z172: 101.0944739 | AA172: 970.28 | AB172: 0 | AC172: 62151.16125 | AD172: 23414.20219 | AE172: 28420.67138 | AF172: 29816.41647 | AG172: 16295.36476 | AH172: 1192.038746 | AI172: 3183.517813 | AJ172: 4869.098618 | AK172: 16054.45353 | AL172: 7082.145241 | AM172: 16873.49 | AN172: 0 | AO172: 0 | AP172: 0 | AQ172: 0 | AR172: 0 | AS172: 0 | AT172: 0 | AU172: 0 | AV172: 0 | AW172: 0 | AX172: 0 | AY172: 0 | AZ172: 0 | BA172: 0 | BB172: 0 | BC172: 0 | BD172: 0 | BE172: 0 | BF172: 0 | BG172: 0 | BH172: 0 | BI172: 0 | BJ172: 0 | BK172: 0 | BL172: 0 | BM172: 0 | BN172: 0 | BO172: 0 | BP172: 0 | BQ172: 0 | BR172: 0 | BS172: 0 | BT172: 0 | BU172: 0 | BV172: 0 | BW172: 0 | BX172: 0 | BY172: 0 | BZ172: 0 | CA172: 0 | CB172: 0 | CC172: 0 | CD172: 0 | CE172: 0 | CF172: 0 | CG172: 167980.8
A173: 172 | G173: (א) | H173: חברות ישראליות | J173: 0 | K173: 0 | L173: 0 | M173: 0 | N173: 0 | P173: 0 | S173: 0 | T173: 0 | X173: 0 | Y173: 0 | Z173: 0 | AC173: 0 | AD173: 0 | AE173: 0 | AF173: 0 | AG173: 0 | AH173: 0 | AI173: 0 | AJ173: 0 | AK173: 0 | AL173: 0 | CG173: 0
A174: 173 | G174: (ב) | H174: חברות זרות | J174: 2525880.54 | K174: 56.56336802 | L174: 22250.55132 | M174: 720981.1824 | N174: 24567.58289 | O174: 948386.31 | P174: 79166.44789 | Q174: 260779.2 | R174: 64159.22 | S174: 2521.815526 | T174: 0 | U174: 19669.57 | W174: 384.78 | X174: 0 | Y174: 4552.582112 | Z174: 101.0944739 | AA174: 970.28 | AC174: 62151.16125 | AD174: 23414.20219 | AE174: 28420.67138 | AF174: 29816.41647 | AG174: 16295.36476 | AH174: 1192.038746 | AI174: 3183.517813 | AJ174: 4869.098618 | AK174: 16054.45353 | AL174: 7082.145241 | AM174: 16873.49 | CG174: 167980.8
A175: 174 | J175: 0 | AC175: 0 | AD175: 0 | AE175: 0 | AF175: 0 | AG175: 0 | AH175: 0 | AI175: 0 | AJ175: 0 | AK175: 0 | AL175: 0 | CG175: 0
A176: 175 | D176: 5) | E176: השקעות בקרנות סל | J176: 7573859.77 | K176: =SUM(K177,K184) -> 172.6961229 | L176: =SUM(L177,L184) -> 67934.14325 | M176: 2201259.566 | N176: 75008.37494 | O176: 2216161.42 | P176: 19946.23278 | Q176: 270898.97 | R176: 43830.47 | S176: 533255.9016 | T176: 421.253735 | U176: 83505.71 | V176: 0 | W176: 6888.4 | X176: 27.11626502 | Y176: 1147.037223 | Z176: 21377.14843 | AA176: 3630.8 | AB176: 217381.07 | AC176: 281779.4924 | AD176: 91618.16364 | AE176: 89926.52823 | AF176: 204113.0366 | AG176: 46833.34274 | AH176: 5404.437599 | AI176: 12456.88636 | AJ176: 15406.43177 | AK176: 109903.3234 | AL176: 20354.28726 | AM176: 53008.92 | AN176: 17741.94 | AO176: 233808.85 | AP176: 52942.16 | AQ176: 59528.41 | AR176: 68699.53 | AS176: 0 | AT176: 0 | AU176: 0 | AV176: 0 | AW176: 0 | AX176: 0 | AY176: 0 | AZ176: 0 | BA176: 0 | BB176: 0 | BC176: 0 | BD176: 0 | BE176: 0 | BF176: 0 | BG176: 0 | BH176: 0 | BI176: 0 | BJ176: 0 | BK176: 0 | BL176: 0 | BM176: 0 | BN176: 0 | BO176: 0 | BP176: 0 | BQ176: 0 | BR176: 0 | BS176: 0 | BT176: 0 | BU176: 0 | BV176: 0 | BW176: 0 | BX176: 0 | BY176: 0 | BZ176: 0 | CA176: 0 | CB176: 0 | CC176: 0 | CD176: 0 | CE176: 0 | CF176: 0 | CG176: 447487.72
A177: 176 | E177: א) | F177: בישראל | J177: 1750574.28 | K177: =SUM(K178:K183) -> 29.15070093 | L177: =SUM(L178:L183) -> 11467.12421 | M177: 371567.4571 | N177: 12661.23794 | O177: 339908.49 | P177: 19946.23278 | Q177: 88365.93 | R177: 27903.91 | S177: 64076.55093 | T177: 421.253735 | U177: 2111.62 | V177: 0 | W177: 6165.22 | X177: 27.11626502 | Y177: 1147.037223 | Z177: 2568.699073 | AA177: 0 | AB177: 113985.87 | AC177: 42541.44906 | AD177: 14876.29135 | AE177: 24502.30538 | AF177: 43628.08454 | AG177: 16082.87511 | AH177: 815.9309424 | AI177: 2022.658647 | AJ177: 4197.794615 | AK177: 23491.25546 | AL177: 6989.794894 | AM177: 6744.81 | AN177: 17741.94 | AO177: 233808.85 | AP177: 52942.16 | AQ177: 59528.41 | AR177: 68699.53 | AS177: 0 | AT177: 0 | AU177: 0 | AV177: 0 | AW177: 0 | AX177: 0 | AY177: 0 | AZ177: 0 | BA177: 0 | BB177: 0 | BC177: 0 | BD177: 0 | BE177: 0 | BF177: 0 | BG177: 0 | BH177: 0 | BI177: 0 | BJ177: 0 | BK177: 0 | BL177: 0 | BM177: 0 | BN177: 0 | BO177: 0 | BP177: 0 | BQ177: 0 | BR177: 0 | BS177: 0 | BT177: 0 | BU177: 0 | BV177: 0 | BW177: 0 | BX177: 0 | BY177: 0 | BZ177: 0 | CA177: 0 | CB177: 0 | CC177: 0 | CD177: 0 | CE177: 0 | CF177: 0 | CG177: 69607.24
A178: 177 | F178: (1) | G178: שעוקבות אחר מדדי מניות בארץ | J178: 508375.4 | K178: 10.89977589 | L178: 4287.68709 | M178: 138933.2634 | N178: 4734.179684 | O178: 129827.89 | P178: 0 | Q178: 8476.65 | R178: 633.84 | S178: 36024.40462 | T178: 0 | W178: 34.8 | X178: 0 | Y178: 0 | Z178: 1444.145377 | AB178: 33247.47 | AC178: 16723.84223 | AD178: 5301.500208 | AE178: 4211.257169 | AF178: 11805.38046 | AG178: 2004.424853 | AH178: 320.7577704 | AI178: 720.819792 | AJ178: 721.4828314 | AK178: 6356.52954 | AL178: 871.1451472 | AM178: 4121.51 | AR178: 68699.53 | CG178: 28861.99
A179: 178 | F179: (2) | G179: שעוקבות אחר מדדי מניות בחו"ל | J179: 557866.88 | K179: 8.152543206 | L179: 3206.99752 | M179: 103915.846 | N179: 3540.953943 | O179: 106648.08 | P179: 0 | Q179: 10404.23 | R179: 908.54 | S179: 26643.88081 | T179: 0 | U179: 2111.62 | W179: 41.21 | X179: 0 | Y179: 0 | Z179: 1068.099187 | AB179: 1769.88 | AC179: 13597.34737 | AD179: 4362.149289 | AE179: 3720.973722 | AF179: 9117.254319 | AG179: 1748.745792 | AH179: 260.7926316 | AI179: 593.1007111 | AJ179: 637.4862777 | AK179: 4909.125681 | AL179: 760.0242077 | AM179: 2623.3 | AO179: 233808.85 | CG179: 21460.24
A180: 179 | F180: (3) | G180: שעוקבות אחר מדדי אג"ח בארץ | J180: 684332 | K180: 10.09838183 | L180: 3972.439601 | M180: 128718.3477 | N180: 4386.104318 | O180: 103432.52 | P180: 19946.23278 | Q180: 69485.05 | R180: 26361.53 | S180: 1408.26549 | T180: 421.253735 | W180: 6089.21 | X180: 27.11626502 | Y180: 1147.037223 | Z180: 56.45450961 | AB180: 78968.52 | AC180: 12220.25946 | AD180: 5212.641856 | AE180: 16570.07449 | AF180: 22705.44976 | AG180: 12329.70446 | AH180: 234.3805404 | AI180: 708.7381441 | AJ180: 2838.825506 | AK180: 12225.60024 | AL180: 5358.625539 | AN180: 17741.94 | AP180: 52942.16 | AQ180: 59528.41 | CG180: 19285.01
A181: 180 | F181: (4) | G181: שעוקבות אחר מדדי אג"ח בחו"ל | J181: 0 | K181: 0 | L181: 0 | M181: 0 | N181: 0 | P181: 0 | S181: 0 | T181: 0 | X181: 0 | Y181: 0 | Z181: 0 | AC181: 0 | AD181: 0 | AE181: 0 | AF181: 0 | AG181: 0 | AH181: 0 | AI181: 0 | AJ181: 0 | AK181: 0 | AL181: 0 | CG181: 0
A182: 181 | F182: (5) | G182: בחסר | J182: 0 | K182: 0 | L182: 0 | M182: 0 | N182: 0 | P182: 0 | S182: 0 | T182: 0 | X182: 0 | Y182: 0 | Z182: 0 | AC182: 0 | AD182: 0 | AE182: 0 | AF182: 0 | AG182: 0 | AH182: 0 | AI182: 0 | AJ182: 0 | AK182: 0 | AL182: 0 | CG182: 0
A183: 182 | F183: (6) | G183: אחר | J183: 0 | K183: 0 | L183: 0 | M183: 0 | N183: 0 | P183: 0 | S183: 0 | T183: 0 | X183: 0 | Y183: 0 | Z183: 0 | AC183: 0 | AD183: 0 | AE183: 0 | AF183: 0 | AG183: 0 | AH183: 0 | AI183: 0 | AJ183: 0 | AK183: 0 | AL183: 0 | CG183: 0
A184: 183 | E184: ב) | F184: בחו"ל | J184: 5823285.49 | K184: =SUM(K185:K188) -> 143.545422 | L184: =SUM(L185:L188) -> 56467.01904 | M184: 1829692.109 | N184: 62347.13699 | O184: 1876252.93 | P184: 0 | Q184: 182533.04 | R184: 15926.56 | S184: 469179.3506 | T184: 0 | U184: 81394.09 | V184: 0 | W184: 723.18 | X184: 0 | Y184: 0 | Z184: 18808.44936 | AA184: 3630.8 | AB184: 103395.2 | AC184: 239238.0433 | AD184: 76741.87228 | AE184: 65424.22285 | AF184: 160484.9521 | AG184: 30750.46763 | AH184: 4588.506656 | AI184: 10434.22772 | AJ184: 11208.63715 | AK184: 86412.06794 | AL184: 13364.49237 | AM184: 46264.11 | AN184: 0 | AO184: 0 | AP184: 0 | AQ184: 0 | AR184: 0 | AS184: 0 | AT184: 0 | AU184: 0 | AV184: 0 | AW184: 0 | AX184: 0 | AY184: 0 | AZ184: 0 | BA184: 0 | BB184: 0 | BC184: 0 | BD184: 0 | BE184: 0 | BF184: 0 | BG184: 0 | BH184: 0 | BI184: 0 | BJ184: 0 | BK184: 0 | BL184: 0 | BM184: 0 | BN184: 0 | BO184: 0 | BP184: 0 | BQ184: 0 | BR184: 0 | BS184: 0 | BT184: 0 | BU184: 0 | BV184: 0 | BW184: 0 | BX184: 0 | BY184: 0 | BZ184: 0 | CA184: 0 | CB184: 0 | CC184: 0 | CD184: 0 | CE184: 0 | CF184: 0 | CG184: 377880.48
A185: 184 | F185: (1) | G185: שעוקבות אחר מדדי מניות | J185: 5779161.63 | K185: 143.545422 | L185: 56467.01904 | M185: 1829692.109 | N185: 62347.13699 | O185: 1876252.93 | P185: 0 | Q185: 182533.04 | R185: 15926.56 | S185: 469179.3506 | T185: 0 | U185: 63479.74 | W185: 723.18 | X185: 0 | Y185: 0 | Z185: 18808.44936 | AB185: 80816.49 | AC185: 239238.0433 | AD185: 76741.87228 | AE185: 65424.22285 | AF185: 160484.9521 | AG185: 30750.46763 | AH185: 4588.506656 | AI185: 10434.22772 | AJ185: 11208.63715 | AK185: 86412.06794 | AL185: 13364.49237 | AM185: 46264.11 | CG185: 377880.48
A186: 185 | F186: (2) | G186: שעוקבות אחר מדדי אג"ח | J186: 44123.86 | K186: 0 | L186: 0 | M186: 0 | N186: 0 | P186: 0 | S186: 0 | T186: 0 | U186: 17914.35 | X186: 0 | Y186: 0 | Z186: 0 | AA186: 3630.8 | AB186: 22578.71 | AC186: 0 | AD186: 0 | AE186: 0 | AF186: 0 | AG186: 0 | AH186: 0 | AI186: 0 | AJ186: 0 | AK186: 0 | AL186: 0 | CG186: 0
A187: 186 | F187: (3) | G187: בחסר | J187: 0 | K187: 0 | L187: 0 | M187: 0 | N187: 0 | P187: 0 | S187: 0 | T187: 0 | X187: 0 | Y187: 0 | Z187: 0 | AC187: 0 | AD187: 0 | AE187: 0 | AF187: 0 | AG187: 0 | AH187: 0 | AI187: 0 | AJ187: 0 | AK187: 0 | AL187: 0 | CG187: 0
A188: 187 | F188: (4) | G188: אחר | J188: 0 | K188: 0 | L188: 0 | M188: 0 | N188: 0 | P188: 0 | S188: 0 | T188: 0 | X188: 0 | Y188: 0 | Z188: 0 | AC188: 0 | AD188: 0 | AE188: 0 | AF188: 0 | AG188: 0 | AH188: 0 | AI188: 0 | AJ188: 0 | AK188: 0 | AL188: 0 | CG188: 0
A189: 188 | AC189: 0 | AD189: 0 | AE189: 0 | AF189: 0 | AG189: 0 | AH189: 0 | AI189: 0 | AJ189: 0 | AK189: 0 | AL189: 0 | CG189: 0
A190: 189 | D190: 6) | E190: תעודות השתתפות בקרנות נאמנות | J190: 2498603.7 | K190: =SUM(K191,K192) -> 57.95225934 | L190: =SUM(L191,L192) -> 22796.90488 | M190: 738684.5926 | N190: 25170.83026 | O190: 731881.25 | P190: 21089.13833 | Q190: 226238.85 | R190: 30719.43 | S190: 106724.751 | T190: 0 | U190: 35662.59 | V190: 0 | W190: 8095.11 | X190: 0 | Y190: 1212.761674 | Z190: 4278.378987 | AA190: 3281.64 | AB190: 0 | AC190: 93618.00754 | AD190: 35866.6958 | AE190: 42798.92412 | AF190: 78051.80074 | AG190: 37028.26685 | AH190: 1795.562465 | AI190: 4876.624199 | AJ190: 7332.415884 | AK190: 42026.47926 | AL190: 16092.89315 | AM190: 10385.21 | AN190: 284 | AO190: 0 | AP190: 779.2 | AQ190: 1005.2 | AR190: 786.86 | AS190: 0 | AT190: 0 | AU190: 0 | AV190: 0 | AW190: 0 | AX190: 0 | AY190: 0 | AZ190: 0 | BA190: 0 | BB190: 0 | BC190: 0 | BD190: 0 | BE190: 0 | BF190: 0 | BG190: 0 | BH190: 0 | BI190: 0 | BJ190: 0 | BK190: 0 | BL190: 0 | BM190: 0 | BN190: 0 | BO190: 0 | BP190: 0 | BQ190: 0 | BR190: 0 | BS190: 0 | BT190: 0 | BU190: 0 | BV190: 0 | BW190: 0 | BX190: 0 | BY190: 0 | BZ190: 0 | CA190: 0 | CB190: 0 | CC190: 0 | CD190: 0 | CE190: 0 | CF190: 0 | CG190: 169981.38
A191: 190 | E191: א) | F191: בישראל | J191: 17874.5 | K191: 0.3888680594 | L191: 152.9705358 | M191: 4956.680677 | N191: 168.8999191 | O191: 4631.83 | P191: 0 | Q191: 302.42 | R191: 541.83 | S191: 1285.227821 | T191: 0 | W191: 1.24 | X191: 0 | Y191: 0 | Z191: 51.52217879 | AC191: 596.6563287 | AD191: 189.1431101 | AE191: 150.2404417 | AF191: 421.1789577 | AG191: 71.51067289 | AH191: 11.44367132 | AI191: 25.71688992 | AJ191: 25.73955827 | AK191: 226.7810423 | AL191: 31.07932711 | AM191: 147.04 | AN191: 284 | AP191: 779.2 | AQ191: 1005.2 | AR191: 786.86 | CG191: 1029.7
A192: 191 | E192: ב) | F192: בחו"ל | J192: 2480729.2 | K192: =SUM(K193:K196) -> 57.56339128 | L192: =SUM(L193:L196) -> 22643.93434 | M192: 733727.9119 | N192: 25001.93034 | O192: 727249.42 | P192: 21089.13833 | Q192: 225936.43 | R192: 30177.6 | S192: 105439.5232 | T192: 0 | U192: 35662.59 | V192: 0 | W192: 8093.87 | X192: 0 | Y192: 1212.761674 | Z192: 4226.856808 | AA192: 3281.64 | AB192: 0 | AC192: 93021.35121 | AD192: 35677.55269 | AE192: 42648.68367 | AF192: 77630.62179 | AG192: 36956.75618 | AH192: 1784.118793 | AI192: 4850.907309 | AJ192: 7306.676326 | AK192: 41799.69821 | AL192: 16061.81382 | AM192: 10238.17 | AN192: 0 | AO192: 0 | AP192: 0 | AQ192: 0 | AR192: 0 | AS192: 0 | AT192: 0 | AU192: 0 | AV192: 0 | AW192: 0 | AX192: 0 | AY192: 0 | AZ192: 0 | BA192: 0 | BB192: 0 | BC192: 0 | BD192: 0 | BE192: 0 | BF192: 0 | BG192: 0 | BH192: 0 | BI192: 0 | BJ192: 0 | BK192: 0 | BL192: 0 | BM192: 0 | BN192: 0 | BO192: 0 | BP192: 0 | BQ192: 0 | BR192: 0 | BS192: 0 | BT192: 0 | BU192: 0 | BV192: 0 | BW192: 0 | BX192: 0 | BY192: 0 | BZ192: 0 | CA192: 0 | CB192: 0 | CC192: 0 | CD192: 0 | CE192: 0 | CF192: 0 | CG192: 168951.68
A193: 192 | F193: (1) | G193: אג"ח קנצרני | J193: 887204.79 | K193: 18.66949002 | L193: 7344.08965 | M193: 237969.4042 | N193: 8108.856662 | O193: 225539.03 | P193: 15292.81439 | Q193: 134392.69 | R193: 19312.11 | S193: 1453.963548 | T193: 0 | U193: 19884.49 | W193: 5752.49 | X193: 0 | Y193: 879.4356081 | Z193: 58.28645213 | AA193: 2379.73 | AC193: 28972.40877 | AD193: 13526.1004 | AE193: 20395.88698 | AF193: 30490.99441 | AG193: 21849.99235 | AH193: 555.6812312 | AI193: 1839.079599 | AJ193: 3494.273017 | AK193: 16417.67559 | AL193: 9496.247651 | CG193: 61780.39
A194: 193 | F194: (2) | G194: אג"ח ממשלתי | J194: 0 | K194: 0 | L194: 0 | M194: 0 | N194: 0 | P194: 0 | S194: 0 | T194: 0 | X194: 0 | Y194: 0 | Z194: 0 | AC194: 0 | AD194: 0 | AE194: 0 | AF194: 0 | AG194: 0 | AH194: 0 | AI194: 0 | AJ194: 0 | AK194: 0 | AL194: 0 | CG194: 0
A195: 194 | F195: (3) | G195: מניות | J195: 1257823.92 | K195: 31.81768695 | L195: 12516.24684 | M195: 405562.0159 | N195: 13819.60956 | O195: 416225.34 | P195: 0 | Q195: 40605.57 | R195: 3545.78 | S195: 103985.5596 | T195: 0 | U195: 8241.19 | W195: 160.85 | X195: 0 | Y195: 0 | Z195: 4168.570356 | AC195: 53067.69906 | AD195: 17024.5701 | AE195: 14522.21822 | AF195: 35582.75784 | AG195: 6824.98587 | AH195: 1017.820941 | AI195: 2314.7499 | AJ195: 2487.981783 | AK195: 19159.30216 | AL195: 2966.21413 | AM195: 10238.17 | CG195: 83754.9
A196: 195 | F196: (4) | G196: אחר | J196: 335700.49 | K196: 7.076214311 | L196: 2783.597851 | M196: 90196.49182 | N196: 3073.464112 | O196: 85485.05 | P196: 5796.323934 | Q196: 50938.17 | R196: 7319.71 | S196: 0 | T196: 0 | U196: 7536.91 | W196: 2180.53 | X196: 0 | Y196: 333.3260662 | Z196: 0 | AA196: 901.91 | AC196: 10981.24338 | AD196: 5126.88219 | AE196: 7730.578474 | AF196: 11556.86954 | AG196: 8281.777961 | AH196: 210.6166211 | AI196: 697.0778098 | AJ196: 1324.421526 | AK196: 6222.720465 | AL196: 3599.352039 | CG196: 23416.39
A197: 196 | AC197: 0 | AD197: 0 | AE197: 0 | AF197: 0 | AG197: 0 | AH197: 0 | AI197: 0 | AJ197: 0 | AK197: 0 | AL197: 0 | CG197: 0
A198: 197 | D198: 7) | E198: קרנות השקעה | J198: 9108100.98 | K198: =SUM(K204,K199) -> 230.688538 | L198: =SUM(L204,L199) -> 90746.84434 | M198: 2940456.001 | N198: 100196.6463 | O198: 3024235.9 | P198: 46951.06074 | Q198: 736225.42 | R198: 213853.79 | S198: 238623.3149 | T198: 0 | U198: 78268.33 | V198: 0 | W198: 1247.36 | X198: 0 | Y198: 2699.989262 | Z198: 9565.925116 | AA198: 2849.62 | AB198: 0 | AC198: 304177.0055 | AD198: 113797.1256 | AE198: 168248.8734 | AF198: 148513.6831 | AG198: 61504.04412 | AH198: 5834.014502 | AI198: 15472.45443 | AJ198: 28824.80663 | AK198: 79966.21685 | AL198: 26730.33588 | AM198: 100384.22 | AN198: 0 | AO198: 0 | AP198: 0 | AQ198: 0 | AR198: 0 | AS198: 0 | AT198: 0 | AU198: 0 | AV198: 0 | AW198: 0 | AX198: 0 | AY198: 0 | AZ198: 0 | BA198: 0 | BB198: 0 | BC198: 0 | BD198: 0 | BE198: 0 | BF198: 0 | BG198: 0 | BH198: 0 | BI198: 0 | BJ198: 0 | BK198: 0 | BL198: 0 | BM198: 0 | BN198: 0 | BO198: 0 | BP198: 0 | BQ198: 0 | BR198: 0 | BS198: 0 | BT198: 0 | BU198: 0 | BV198: 0 | BW198: 0 | BX198: 0 | BY198: 0 | BZ198: 0 | CA198: 0 | CB198: 0 | CC198: 0 | CD198: 0 | CE198: 0 | CF198: 0 | CG198: 568497.31
A199: 198 | E199: א) | F199: בישראל | J199: 1738649.79 | K199: =SUM(K200:K203) -> 62.42706925 | L199: =SUM(L200:L203) -> 24557.1782 | M199: 795722.4574 | N199: 27114.4073 | O199: 535874.51 | P199: 3568.573948 | Q199: 105771.36 | R199: 26371.05 | S199: 31308.57277 | T199: 0 | U199: 4851.65 | V199: 0 | W199: 224.18 | X199: 0 | Y199: 205.2160524 | Z199: 1255.097234 | AA199: 0 | AB199: 0 | AC199: 22142.71013 | AD199: 8739.325446 | AE199: 10343.87257 | AF199: 11389.29106 | AG199: 3072.679571 | AH199: 424.6898671 | AI199: 1188.244554 | AJ199: 1772.137433 | AK199: 6132.488937 | AL199: 1335.420429 | AM199: 14202.16 | AN199: 0 | AO199: 0 | AP199: 0 | AQ199: 0 | AR199: 0 | AS199: 0 | AT199: 0 | AU199: 0 | AV199: 0 | AW199: 0 | AX199: 0 | AY199: 0 | AZ199: 0 | BA199: 0 | BB199: 0 | BC199: 0 | BD199: 0 | BE199: 0 | BF199: 0 | BG199: 0 | BH199: 0 | BI199: 0 | BJ199: 0 | BK199: 0 | BL199: 0 | BM199: 0 | BN199: 0 | BO199: 0 | BP199: 0 | BQ199: 0 | BR199: 0 | BS199: 0 | BT199: 0 | BU199: 0 | BV199: 0 | BW199: 0 | BX199: 0 | BY199: 0 | BZ199: 0 | CA199: 0 | CB199: 0 | CC199: 0 | CD199: 0 | CE199: 0 | CF199: 0 | CG199: 101020.09
A200: 199 | F200: (1) | G200: קרנות הון סיכון | J200: 156851.45 | K200: 6.027422509 | L200: 2371.030554 | M200: 76828.13735 | N200: 2617.934669 | O200: 40608.81 | P200: 0 | Q200: 6095.89 | R200: 1568.89 | S200: 2991.16044 | T200: 0 | U200: 551 | X200: 0 | Y200: 0 | Z200: 119.9095603 | AC200: 4012.138509 | AD200: 1513.558626 | AE200: 1026.497883 | AF200: 2093.128638 | AG200: 131.2760018 | AH200: 76.95149147 | AI200: 205.7913743 | AJ200: 175.8621166 | AK200: 1127.031362 | AL200: 57.05399819 | AM200: 1979.22 | CG200: 10694.15
A201: 200 | F201: (2) | G201: קרנות גידור | J201: 381159.55 | K201: 12.17013072 | L201: 4787.411491 | M201: 155125.7562 | N201: 5285.942222 | O201: 137617.57 | P201: 2007.940454 | Q201: 20134.1 | R201: 3906.02 | S201: 14835.68736 | T201: 0 | U201: 374.89 | W201: 224.18 | X201: 0 | Y201: 115.469546 | Z201: 594.7326412 | AC201: 5261.123391 | AD201: 1550.5668 | AE201: 2235.865994 | AF201: 2270.678228 | AG201: 1158.509148 | AH201: 100.906609 | AI201: 210.8231999 | AJ201: 383.0540059 | AK201: 1222.631772 | AL201: 503.5008524 | AM201: 381.26 | CG201: 20858.76
A202: 201 | F202: (3) | G202: קרנות נדל"ן | J202: 60667.43 | K202: 0.2594351806 | L202: 102.0550226 | M202: 3306.873156 | N202: 112.6823867 | O202: 31442.59 | P202: 542.9943193 | Q202: 8780.28 | R202: 2241.95 | S202: 0 | T202: 0 | U202: 271.75 | X202: 0 | Y202: 31.22568071 | Z202: 0 | AC202: 2786.142703 | AD202: 1023.1563 | AE202: 1250.142537 | AF202: 638.5285161 | AG202: 725.513731 | AH202: 53.43729685 | AI202: 139.1137003 | AJ202: 214.1774632 | AK202: 343.8114839 | AL202: 315.316269 | AM202: 106.02 | CG202: 6239.41
... 335 more rows

Sheet גיליון2

Sheet גיליון3
